{"text_format":"1","workbook":"xlsx","n_sheets":18,"sheets":["I, II, II A, III","IV wykaz faktur","zał odtwarzanie","zał zapobieganie","zał usługi","zał WoP ","II.A Posiadacz","IV.1 zał WoP","IV.2 zał WoP","V-IX Ośw. Beneficjenta","Zał 1a Sprawozdanie  BP","Zał 1b Sprawozdanie BP ","Zał 1c Sprawozdanie BP","Arkusz3","lista","zał premie","Arkusz1","Arkusz2"],"not_rendered":{"charts":0,"images":0,"macros":1,"external_links":8,"defined_names":155,"comments":1,"pivot_tables":0},"unopened":[],"bounds":{"document_bytes":16777216,"sheet_cells":100000,"rows_first":2000,"rows_last":500,"rows_between":2000,"halvings":0,"cell_chars":16384,"cell_head_chars":4096},"cells_cut":0,"cells_raw":0,"read":"whole","date_system":"1900"}

{"sheet":"I, II, II A, III","index":0,"n_rows":116,"n_cols":58,"rows_kept":116,"cut":false,"hidden":false,"merged":[[63,27,63,36],[95,27,95,36],[0,0,0,39],[33,3,33,20],[33,21,33,28],[33,29,33,36],[34,3,36,20],[34,21,34,28],[34,29,34,36],[35,21,35,36],[36,21,36,36],[19,2,19,36],[21,2,21,36],[22,2,22,36],[11,26,11,38],[12,26,12,38],[13,1,13,24],[13,27,13,37],[14,1,14,25],[17,2,17,37],[18,2,18,36],[14,26,14,38],[15,1,15,38],[38,3,38,12],[38,14,38,22],[38,24,38,36],[61,8,61,17],[61,18,61,27],[61,28,61,36],[39,14,39,22],[39,24,39,36],[41,3,41,8],[41,10,41,22],[42,3,42,8],[42,10,42,22],[51,9,51,13],[51,14,51,26],[52,3,52,13],[52,14,52,26],[52,27,52,36],[53,3,53,13],[53,14,53,26],[53,27,53,36],[58,3,58,9],[58,10,58,17],[58,18,58,26],[51,27,51,36],[114,1,114,14],[58,27,58,36],[59,27,59,36],[56,3,56,36],[113,3,113,19],[108,3,108,18],[71,3,71,23],[71,24,71,36],[81,29,81,36],[82,21,82,36],[83,21,83,36],[85,3,85,12],[85,14,85,22],[85,24,85,36],[86,14,86,22],[86,24,86,36],[59,3,59,9],[59,10,59,17],[59,18,59,26],[60,3,60,7],[60,8,60,17],[60,18,60,27],[60,28,60,36],[61,3,61,7],[70,24,70,36],[28,25,29,25],[46,27,46,36],[28,32,29,32],[28,30,29,30],[28,28,29,28],[28,26,29,26],[31,4,31,18],[28,24,29,24],[28,31,29,31],[28,29,29,29],[44,23,44,36],[46,3,46,9],[46,10,46,17],[46,18,46,26],[47,3,47,9],[47,10,47,17],[47,18,47,26],[48,3,48,7],[48,8,48,17],[48,18,48,27],[48,28,48,36],[47,27,47,36],[51,3,51,8],[92,8,92,17],[92,18,92,27],[92,28,92,36],[1,1,4,38],[9,1,12,25],[8,26,9,38],[68,4,68,36],[110,29,111,30],[111,3,111,18],[78,4,78,18],[80,3,80,20],[80,21,80,28],[80,29,80,36],[81,3,83,20],[81,21,81,28],[49,3,49,7],[49,8,49,17],[49,18,49,27],[49,28,49,36],[50,3,50,8],[50,9,50,13],[50,14,50,26],[50,27,50,36],[70,3,70,23],[97,14,97,26],[97,27,97,36],[28,12,29,21],[88,4,88,36],[93,3,93,7],[93,8,93,17],[93,18,93,27],[93,28,93,36],[94,3,94,8],[94,9,94,13],[94,14,94,26],[94,27,94,36],[95,3,95,8],[95,9,95,13],[95,14,95,26],[90,3,90,9],[90,10,90,17],[90,18,90,26],[90,27,90,36],[91,3,91,9],[91,10,91,17],[91,18,91,26],[91,27,91,36],[92,3,92,7],[110,3,110,20],[110,21,110,27],[108,21,108,27],[62,3,62,8],[62,9,62,13],[62,14,62,26],[62,27,62,36],[63,3,63,8],[63,9,63,13],[63,14,63,26],[64,3,64,13],[64,14,64,26],[64,27,64,36],[65,3,65,13],[65,14,65,26],[65,27,65,36],[100,3,100,31],[74,3,74,28],[100,32,100,36],[99,3,99,36],[96,3,96,13],[96,14,96,26],[96,27,96,36],[97,3,97,13]]}
[]
[null,"\nWniosek o płatność na operacje typu „Premie na rozpoczęcie działalności pozarolniczej” w ramach poddziałania  6.2 „Pomoc na rozpoczęcie pozarolniczej działalności gospodarczej na obszarach wiejskich\" objętego Programem Rozwoju Obszarów Wiejskich na lata 2014–2020\n"]
[null,null,null,null,null,null,null,null,null,null,null,null,null,null,null,null,null,null,null,null,null,null,null,null,null,null,null,null,null,null,null,null,null,null,null,null,null,null,null,null,null,null,null,null,null,null,null,null,null,"wybierz z listy"]
[null,null,null,null,null,null,null,null,null,null,null,null,null,null,null,null,null,null,null,null,null,null,null,null,null,null,null,null,null,null,null,null,null,null,null,null,null,null,null,null,null,null,null,null,null,null,null,null,null,"wniosek o płatność",null,null,null,null,null,null,"wybierz z listy"]
[null,null,null,null,null,null,null,null,null,null,null,null,null,null,null,null,null,null,null,null,null,null,null,null,null,null,null,null,null,null,null,null,null,null,null,null,null,null,null,null,null,null,null,null,null,null,null,null,null,"korekta wniosku o płatność",null,null,null,null,null,null,"Modernizacja gospodarstw rolnych"]
[null,null,null,null,null,null,null,null,null,null,null,null,null,null,null,null,null,null,null,null,null,null,null,null,null,null,null,null,null,null,null,null,null,null,null,null,null,null,null,null,null,null,null,null,null,null,null,null,null,null,null,null,null,null,null,null,"Inwestycje w gospodarstwach położonych na obszarach Natura 2000"]
[null,null,null,null,null,null,null,null,null,null,null,null,null,null,null,null,null,null,null,null,null,null,null,null,null,null,null,null,null,null,null,null,null,null,null,null,null,null,null,null,null,null,null,null,null,null,null,null,null,null,null,null,null,null,null,null,"Inwestycje w gospodarstwach położonych na obszarach OSN"]
[]
[null,"W-1.2/PROW 2014-2020",null,null,null,null,null,null,null,null,null,null,null,null,null,null,null,null,null,null,null,null,null,null,null,null,"Potwierdzenie przyjęcia \nwniosku\n/pieczęć/"]
[null,"Europejski Fundusz Rolny na rzecz Rozwoju Obszarów Wiejskich  \nProgram Rozwoju Obszarów Wiejskich na lata 2014-2020"]
[]
[]
[null,null,null,null,null,null,null,null,null,null,null,null,null,null,null,null,null,null,null,null,null,null,null,null,null,null,"………………………………………..",null,null,null,null,null,null,null,null,null,null,null,null,null,null,null,null,null,null,null,null,null,null,null,null,null,null,null,null,"wybierz z listy"]
[null,"…………………………………………………………………………",null,null,null,null,null,null,null,null,null,null,null,null,null,null,null,null,null,null,null,null,null,null,null,null,null,"Data przyjęcia i podpis",null,null,null,null,null,null,null,null,null,null,null,null,null,null,null,null,null,null,null,null,null,null,null,null,null,null,null,"pierwsza"]
[null,"znak sprawy",null,null,null,null,null,null,null,null,null,null,null,null,null,null,null,null,null,null,null,null,null,null,null,null,null,null,null,null,null,null,null,null,null,null,null,null,null,null,null,null,null,null,null,null,null,null,null,null,null,null,null,null,null,"druga"]
[null,"W celu poprawnego wypełnienia wniosku podmiot ubiegający się o wypłatę powinien zapoznać się z Instrukcją jego wypełniania"]
[]
[null,null,"I. CZĘŚĆ OGÓLNA"]
[null,null,"1. Cel złożenia wniosku"]
[null,null,"wybierz z listy",null,null,null,null,null,null,null,null,null,null,null,null,null,null,null,null,null,null,null,null,null,null,null,null,null,null,null,null,null,null,null,null,null,null,null,null,null,null,null,null,null,null,null,null,null,null,null,null,null,null,null,null,"2.1.a Czy wniosek jest składany przez osoby wspólnie wnioskujące","2.1. b Czy dotyczy osoby wiodacej","2.1 Typ operacji"]
[]
[" ",null,"2. Wybierz ratę płatności",null,null,null,null,null,null,null,null,null,null,null,null,null,null,null,null,null,null,null,null,null,null,null,null,null,null,null,null,null,null,null,null,null,null,null,null,null,null,null,null,null,null,null,null,null,null,null,null,null,null,null,null,"wybierz z listy"]
[null,null,"wybierz z listy",null,null,null,null,null,null,null,null,null,null,null,null,null,null,null,null,null,null,null,null,null,null,null,null,null,null,null,null,null,null,null,null,null,null,null,null,null,null,null,null,null,null,null,null,null,null,null,null,null,null,null,null,"płatność pośrednia"]
[null,null,null,null,null,null,null,null,null,null,null,null,null,null,null,null,null,null,null,null,null,null,null,null,null,null,null,null,null,null,null,null,null,null,null,null,null,null,null,null,null,null,null,null,null,null,null,null,null,null,null,null,null,null,null,"wybierz"]
[]
[]
[null,null,"II. IDENTYFIKACJA BENEFICJENTA ",null,null,null,null,null,null,null,null,null,null,null,null,null,null,null,null,null,null,null,null,null,null,null,null,null,null,null,null,null,null,null,null,null,null,null,null,null,null,null,null,null,null,null,null,null,null,null,null,null,null,null,null,"wybierz z listy"]
[null,null,null,null,null,null,null,null,null,null,null,null,null,null,null,null,null,null,null,null,null,null,null,null,null,null,null,null,null,null,null,null,null,null,null,null,null,null,null,null,null,null,null,null,null,null,null,null,null,null,null,null,null,null,null,"pierwszy"]
[null,null,null,null,null,null,null,null,null,null,null,null,null,null,null,null,null,null,null,null,null,null,null,null,null,null,null,null,null,null,null,null,null,null,null,null,null,null,null,null,null,null,null,null,null,null,null,null,null,null,null,null,null,null,null,"drugi"]
[null,null,null,"1.","Numer Identyfikacyjny",null,null,null,null,null,null,null,null,null,null,null,null,null,null,null,null,null,null,null,null,null,null,null,null,null,null,null,null,null,null,null,null,null,null,null,null,null,null,null,null,null,null,null,null,null,null,null,null,null,null,"trzeci"]
[null,null,null,null,null,null,null,null,null,null,null,null,null,null,null,null,null,null,null,null,null,null,null,null,null,null,null,null,null,null,null,null,null,null,null,null,null,null,null,null,null,null,null,null,null,null,null,null,null,null,null,null,null,null,null,"czwarty"]
[null,null,null,"2. ","Dane identyfikacyjne Beneficjenta",null,null,null,null,null,null,null,null,null,null,null,null,null,null,null,null,null,null,null,null,null,null,null,null,null,null,null,null,null,null,null,null,null,null,null,null,null,null,null,null,null,null,null,null,null,null,null,null,null,null,"piąty"]
[null,null,null,null,null,null,null,null,null,null,null,null,null,null,null,null,null,null,null,null,null,null,null,null,null,null,null,null,null,null,null,null,null,null,null,null,null,null,null,null,null,null,null,null,null,null,null,null,null,null,null,null,null,null,null,"szósty"]
[null,null,null,"2.1. Nazwisko: ",null,null,null,null,null,null,null,null,null,null,null,null,null,null,null,null,null,"2.2. Pierwsze imię",null,null,null,null,null,null,null,"2.3. Drugie imię*",null,null,null,null,null,null,null,null,null,null,null,null,null,null,null,null,null,null,null,null,null,null,null,null,null,"siódmy"]
[null,null,null,null,null,null,null,null,null,null,null,null,null,null,null,null,null,null,null,null,null,null,null,null,null,null,null,null,null,null,null,null,null,null,null,null,null,null,null,null,null,null,null,null,null,null,null,null,null,null,null,null,null,null,null,"ósmy"]
[null,null,null,null,null,null,null,null,null,null,null,null,null,null,null,null,null,null,null,null,null,"2.4. PESEL/data urodzenia",null,null,null,null,null,null,null,null,null,null,null,null,null,null,null,null,null,null,null,null,null,null,null,null,null,null,null,null,null,null,null,null,null,"dziewiąty"]
[]
[]
[null,null,null,"2.5. NIP",null,null,null,null,null,null,null,null,null,null,"2.6. Kod kraju ",null,null,null,null,null,null,null,null,null,"2.7. Seria i numer  paszportu lub innego dokumenu tożsamości"]
[null,null,null,null,null,null,null,null,null,null,null,null,null,null,"(wybierz z listy)"]
[null,null,null,null,null,null,null,null,null,null,null,null,null,null,null,null,null,null,null,null,null,null,null,null,null,null,null,null,null,null,null,null,null,null,null,null,null,null,null,null,null,null,null,null,null,null,null,null,null,null,null,null,null,null,null,"dziesiąty"]
[null,null,null,"2.8 Płeć*",null,null,null,null,null,null,"2.9. Stan cywilny"]
[null,null,null,"(wybierz z listy)"]
[]
[null,null,null,"3. "," Adres Beneficjenta (miejsce zamieszkania i adres)"]
[]
[null,null,null,"3.1. Kraj",null,null,null,null,null,null,"3.2. Województwo",null,null,null,null,null,null,null,"3.3. Powiat",null,null,null,null,null,null,null,null,"3.4. Gmina"]
[null,null,null,"(wybierz z listy)",null,null,null,null,null,null,"(wybierz z listy)"]
[null,null,null,"3.5. Kod pocztowy",null,null,null,null,"3.6. Poczta",null,null,null,null,null,null,null,null,null,"3.7. Miejscowość",null,null,null,null,null,null,null,null,null,"3.8 Ulica"]
[]
[null,null,null,"3.9. Nr domu",null,null,null,null,null,"3.10. Nr lokalu",null,null,null,null,"3.11. Telefon komórkowy*",null,null,null,null,null,null,null,null,null,null,null,null,"3.12. Telefon stacjonarny*"]
[]
[null,null,null,"3.13. E-mail*",null,null,null,null,null,null,null,null,null,null,"3.13. Adres www*",null,null,null,null,null,null,null,null,null,null,null,null,"3.15. Telefon komórkowy do powiadomień SMS*"]
[]
[]
[]
[null,null,null,"4. Adres do korespondencji (wypełnić, jeśli jest inny niż w pkt. 3 lub jeśli ustanowiono pełnomocnika)"]
[]
[null,null,null,"4.1. Kraj",null,null,null,null,null,null,"4.2. Województwo",null,null,null,null,null,null,null,"4.3. Powiat",null,null,null,null,null,null,null,null,"4.4. Gmina"]
[null,null,null,"(wybierz z listy)",null,null,null,null,null,null,"(wybierz z listy)"]
[null,null,null,"4.5. Kod pocztowy",null,null,null,null,"4.6. Poczta",null,null,null,null,null,null,null,null,null,"4.7. Miejscowość",null,null,null,null,null,null,null,null,null,"4.8 Ulica"]
[]
[null,null,null,"4.9. Nr domu",null,null,null,null,null,"4.10. Nr lokalu",null,null,null,null,"4.11. Telefon komórkowy*",null,null,null,null,null,null,null,null,null,null,null,null,"4.12. Telefon stacjonarny*"]
[null,null,null,null,null,null,null,null,null,null,null,null,null,null,null,null,null,null,null,null,null,null,null,null,null,null,null,null,null,null,null,null,null,null,null,null,null,null,null,null,null,null,null,null,null,null,null,null,null,null,null,"WYBIERZ"]
[null,null,null,"4.14. E-mail*",null,null,null,null,null,null,null,null,null,null,"4.15. Adres www*",null,null,null,null,null,null,null,null,null,null,null,null,"4.16. Telefon komórkowy do powiadomień SMS*",null,null,null,null,null,null,null,null,null,null,null,null,null,null,null,null,null,null,null,null,null,null,null,"TAK"]
[null,null,null,null,null,null,null,null,null,null,null,null,null,null,null,null,null,null,null,null,null,null,null,null,null,null,null,null,null,null,null,null,null,null,null,null,null,null,null,null,null,null,null,null,null,null,null,null,null,null,null,"NIE"]
[]
[]
[null,null,null,"5.","Dane pełnomocnika Beneficjenta"]
[]
[null,null,null,"5.1 Nazwisko",null,null,null,null,null,null,null,null,null,null,null,null,null,null,null,null,null,null,null,null,"5.2 Pierwsze Imię "]
[]
[]
[]
[null,null,null,"6. Numer rachunku bankowego Beneficjenta"]
[]
[]
[null,null,"II.A IDENTYFIKACJA MAŁŻONKA BENEFICJENTA (jeżeli dotyczy)"]
[null,null,null,"1. ","Dane identyfikacyjne Małżonka Beneficjenta"]
[]
[null,null,null,"1.1. Nazwisko: ",null,null,null,null,null,null,null,null,null,null,null,null,null,null,null,null,null,"1.2. Pierwsze imię",null,null,null,null,null,null,null,"1.3. Drugie imię*"]
[]
[null,null,null,null,null,null,null,null,null,null,null,null,null,null,null,null,null,null,null,null,null,"1.4. PESEL/data urodzenia"]
[]
[]
[null,null,null,"1.5. NIP (o ile został nadany)",null,null,null,null,null,null,null,null,null,null,"1.6. Kod kraju ",null,null,null,null,null,null,null,null,null,"1.7. Seria i numer  paszportu lub innego dokumenu tożsamości"]
[null,null,null,null,null,null,null,null,null,null,null,null,null,null,"(wybierz z listy)"]
[]
[null,null,null,"2. "," Adres Małżonka Beneficjenta (miejsce zamieszkania i adres)"]
[]
[null,null,null,"2.1. Kraj",null,null,null,null,null,null,"2.2. Województwo",null,null,null,null,null,null,null,"2.3. Powiat",null,null,null,null,null,null,null,null,"2.4. Gmina"]
[null,null,null,"(wybierz z listy)",null,null,null,null,null,null,"(wybierz z listy)"]
[null,null,null,"2.5. Kod pocztowy",null,null,null,null,"2.6. Poczta",null,null,null,null,null,null,null,null,null,"2.7. Miejscowość",null,null,null,null,null,null,null,null,null,"2.8 Ulica"]
[]
[null,null,null,"2.9. Nr domu",null,null,null,null,null,"2.10. Nr lokalu",null,null,null,null,"2.11. Telefon komórkowy*",null,null,null,null,null,null,null,null,null,null,null,null,"2.12. Telefon stacjonarny*"]
[]
[null,null,null,"2.13. E-mail*",null,null,null,null,null,null,null,null,null,null,"2.14. Adres www*"]
[]
[]
[null,null,null,"3. Rozdzielność majątkowa małżonków"]
[null,null,null,"3.1. Ustanowiono rozdzielność majątkową z podmiotem wskazanym w części II wniosku",null,null,null,null,null,null,null,null,null,null,null,null,null,null,null,null,null,null,null,null,null,null,null,null,null,null,null,null,"(wybierz z listy)"]
[]
[]
[]
[]
[null,null,"III. ","DANE DOTYCZĄCE WNIOSKU O PŁATNOŚĆ ",null,null,null,null,null,null,null,null,null,null,null,null,null,null,null,null,null,null,null,null,null,null,null,null,null,null,null,null,null,null,null,null,null,null,null,null,null,null,null,150000]
[null,null,null,null,null,null,null,null,null,null,null,null,null,null,null,null,null,null,null,null,null,null,null,null,null,null,null,null,null,null,null,null,null,null,null,null,null,null,null,null,null,null,null,200000]
[null,null,null,null,null,null,null,null,null,null,null,null,null,null,null,null,null,null,null,null,null,null,null,null,null,null,null,null,null,null,null,null,null,null,null,null,null,null,null,null,null,null,null,250000]
[null,null,"1.","Kwota pomocy przyznana dla operacji w zł"]
[]
[null,null,"2.","Wnioskowana kwota pomocy dla danego etapu w zł ",null,null,null,null,null,null,null,null,null,null,null,null,null,null,null,null,null,null,null,null,null,null,null,null,null,null,null,null,null,null,null,null,null,null,null,null,null,null,null,{"$f":"0.2*AR106","v":30000}]
[null,null,null,null,null,null,null,null,null,null,null,null,null,null,null,null,null,null,null,null,null,null,null,null,null,null,null,null,null,null,null,null,null,null,null,null,null,null,null,null,null,null,null,{"$f":"0.2*AR107","v":40000}]
[null,null,null,null,null,null,null,null,null,null,null,null,null,null,null,null,null,null,null,null,null,null,null,null,null,null,null,null,null,null,null,null,null,null,null,null,null,null,null,null,null,null,null,50000]
[null,null,null,null,null,null,null,null,null,null,null,null,null,null,null,null,null,null,null,null,null,null,null,null,null,null,null,null,null,null,null,null,null,null,null,null,null,null,null,null,null,null,null,{"$f":"0.8*AR106","v":120000}]
[null,"* DANE NIEOBOWIĄZKOWE.",null,null,null,null,null,null,null,null,null,null,null,null,null,null,null,null,null,null,null,null,null,null,null,null,null,null,null,null,null,null,null,null,null,null,null,null,null,null,null,null,null,{"$f":"0.8*AR107","v":160000}]
[null,null,null,null,null,null,null,null,null,null,null,null,null,null,null,null,null,null,null,null,null,null,null,null,null,null,null,null,null,null,null,null,null,null,null,null,null,null,null,null,null,null,null,{"$f":"0.8*AR108","v":200000}]

{"sheet":"IV wykaz faktur","index":1,"n_rows":23,"n_cols":13,"rows_kept":23,"cut":false,"hidden":true,"merged":[[2,2,2,12]]}
[]
[]
[null,null,"V. WYKAZ FAKTUR LUB DOKUMENTÓW O RÓWNOWAŻNEJ WARTOŚCI DOWODOWEJ POTWIERDZAJĄCYCH PONIESIENIE KOSZTÓW KWALIFIKOWALNYCH"]
[]
[null,null,"Lp.","Nr\ndokumentu","Data \nwystawienia dokumentu\n(rrrr-mm-dd)","NIP wystawcy dokumentu","Nazwa towaru lub usługi\nlub pozycja na dokumencie","Pozycja w \nharmonogramie \nrzeczowo - finansowym","Data zapłaty\n(rrrr-mm-dd) ","Sposób zapłaty P/K/G ","Kwota dokumentu/pozycji z dokumentubrutto","Kwota dokumentu/pozycji z dokumentunetto","Kwota kosztów kwalifikowalnych"]
[null,null,null,1,2,3,4,5,6,7,8,9,10]
[null,null,1]
[null,null,2]
[null,null,3]
[null,null,4]
[null,null,5]
[null,null,6]
[null,null,7]
[null,null,8]
[null,null,9]
[null,null,10]
[null,null,11]
[null,null,12]
[null,null,13]
[null,null,14]
[null,null,15]
[null,null,"…"]
[null,null,null,null,null,null,null,null,null,"RAZEM",{"$f":"SUM(K7:K22)","v":0},{"$f":"SUM(L7:L22)","v":0},{"$f":"SUM(M7:M22)","v":0}]

{"sheet":"zał odtwarzanie","index":2,"n_rows":15,"n_cols":3,"rows_kept":15,"cut":false,"hidden":true,"merged":[[0,0,0,2],[14,0,14,1]]}
["VII. 3. Część szczegółowa dla działania Wsparcie inwestycji w odtwarzanie gruntów rolnych i przywracanie potencjału produkcji rolnej zniszczonego w wyniku klęsk żywiołowych, niekorzystnych zjawisk klimatycznych i katastrof"]
[]
[]
[]
[]
[]
[]
[]
[]
[]
[]
[]
[]
[13," Inne załączniki – jeśli dotyczy"]
["Liczba załączników (ogółem)",null,{"$f":"SUM(C2:C14)","v":0}]

{"sheet":"zał zapobieganie","index":3,"n_rows":14,"n_cols":3,"rows_kept":14,"cut":false,"hidden":true,"merged":[[13,0,13,1],[0,0,0,2]]}
["\nVII. 4. Część szczegółowa dla działania Wsparcie inwestycji w środki zapobiegawcze, których celem jest ograniczanie skutków prawdopodobnych klęsk żywiołowych, niekorzystnych zjawisk klimatycznych i katastrof"]
["LP","Nazwa załącznika","Liczba"]
[]
[]
[]
[]
[]
[]
[]
[]
[]
[]
[]
["Liczba załączników (ogółem)",null,{"$f":"SUM(C3:C13)","v":0}]

{"sheet":"zał usługi","index":4,"n_rows":9,"n_cols":3,"rows_kept":9,"cut":false,"hidden":true,"merged":[[0,0,0,2],[8,0,8,1]]}
["VII. 3. Część szczegółowa dla operacji typu „Rozwój przedsiębiorczości - rozwój usług rolniczych” \nw ramach poddziałania \"Wsparcie inwestycji w tworzenie i rozwój działalności pozarolniczej\""]
["LP","Nazwa załącznika","Liczba"]
[1,"Sprawozdanie z realizacji operacji (dołączane do wniosku o płatność końcową) – na formularzu udostępnionym przez Agencję – oryginał;"]
[2,"Dowód rejestracyjny, jeżeli jest wymagany odrębnymi przepisami - dotyczy w szczególności ciągników oraz środków transportu objętych współfinansowaniem - kopia potwierdzona za zgodność z oryginałem przez notariusza lub podmiot, który wydał dokument lub pracownika Agencji;"]
[3,"Certyfikat dotyczący wdrożonego systemu zarządzania jakością;"]
[4,"Dokument potwierdzający ustanowienie dodatkowego zabezpieczenia – jeżeli dotyczy – oryginał;"]
[5,"Ostateczne pozwolenie wodnoprawne – jeżeli dla robót wymagana była decyzja o zatwierdzeniu projektu prac geologicznych - oryginał lub kopia potwierdzona za zgodność z oryginałem przez notariusza lub podmiot, który wydał dokument lub pracownika Agencji;"]
[6," Inne załączniki – jeśli dotyczy."]
["Liczba załączników (ogółem)",null,{"$f":"SUM(C3:C8)","v":0}]

{"sheet":"zał WoP ","index":5,"n_rows":31,"n_cols":3,"rows_kept":31,"cut":false,"hidden":true,"merged":[[31,1,31,2],[0,0,0,2],[17,2,18,2],[19,0,20,0],[19,2,20,2],[30,0,30,1]]}
["VII. WYKAZ ZAŁĄCZNIKÓW DO WNIOSKU O PŁATNOŚĆ\nVII. 1. Część wspólna "]
["LP","Nazwa załącznika","Liczba"]
[1,"Faktury lub dokumenty o równoważnej wartości dowodowej - kopie poświadczone za zgodność z oryginałem przez notariusza lub potwierdzone za zgodność z oryginałem przez upoważnionego pracownika Agencji lub Beneficjenta;"]
[2,"Dokumenty potwierdzające płatność  - kopie poświadczone za zgodność z oryginałem przez notariusza lub potwierdzone za zgodność z oryginałem przez upoważnionego pracownika Agencji lub Beneficjenta;"]
[3,"Protokół/protokoły z postępowania o udzielenie zamówienia - oryginał;"]
[4,"Załączniki do  protokołu/ protokołów z postępowania o udzielenie zamówienia określone w Zasadach konkurencyjności wydatków w ramach PROW 2014-2020 (załącznik nr 3 do umowy) - kopie;"]
["4a","Potwierdzenie udokumentowania publikacji zapytania na stronie internetowej, wskazanej w komunikacie, o którym mowa w ust. 8 Zasad konkurencyjności (…), a do czasu uruchomienia tej strony, kopie zapytań ofertowych skierowanych do potencjalnych wykonawców zamówienia wraz z potwierdzeniem ich wysłania oraz potwierdzenie udokumentowania publikacji tego zapytania na stronie internetowej Beneficjenta, o ile posiada taką stronę;"]
["4b","Potwierdzenie odpowiedniego upublicznienia informacji o modyfikacji treści zapytania ofertowego na stronie internetowej wskazanej w komunikacie, o którym mowa w ust. 8 Zasad konkurencyjności (…), a do czasu uruchomienia tej strony internetowej, wysłania informacji o zmianie zapytania ofertowego do wszystkich potencjalnych wykonawców, do których zapytanie to zostało skierowane oraz upublicznienia tej informacji co najmniej na stronie internetowej beneficjenta, o ile posiada taką stronę;"]
["4c","Złożone oferty;"]
["4d","Oświadczenie/oświadczenia o braku powiązań z wykonawcami, którzy złożyli oferty, podpisane przez beneficjenta lub osoby upoważnione do zaciągania zobowiązań w imieniu beneficjenta lub osoby wykonujące w imieniu beneficjenta czynności związane z przygotowaniem i przeprowadzeniem procedury wyboru wykonawcy;"]
["4e","Potwierdzenie odpowiedniego upublicznienia informacji o wyniku postępowania na stronie internetowej, wskazanej w komunikacie, o którym mowa w ust. 8 Zasad konkurencyjności (…), a do czasu uruchomienia tej strony internetowej – wysłania informacji o wyniku postępowania do wszystkich potencjalnych wykonawców, do których zostało skierowane zapytanie ofertowe oraz upublicznienia tej informacji co najmniej na stronie internetowej beneficjenta, o ile posiada taką stronę;\n"]
["4f","Kopia umowy z wykonawcą lub oryginał stosownego dokumentu sprzedaży potwierdzającego zawarcie umowy z wykonawcą;"]
["4g","Inne dokumenty istotne dla postępowania ofertowego, w szczególności korespondencja z wykonawcami;"]
[5,"Ostateczne pozwolenie na użytkowanie obiektu budowlanego - jeżeli taki obowiązek wynika z przepisów prawa budowlanego – oryginał lub kopia poświadczona za zgodność z oryginałem przez notariusza lub potwierdzona za zgodność z oryginałem przez upoważnionego pracownika Agencji lub podmiot, który wydał dokument;"]
[6,"Zawiadomienie właściwego organu o zakończeniu robót budowlanych złożone co najmniej 14 dni przed zamierzonym terminem przystąpienia do użytkowania, jeżeli obowiązek taki wynika z przepisów prawa budowlanego  - oryginał lub kopia poświadczona za zgodność z oryginałem przez notariusza lub podmiot, który wydał dokument lub pracownika Agencji wraz z:\n- Oświadczeniem Beneficjenta, że w ciągu 14 dni od dnia zgłoszenia zakończenia robót budowlanych właściwy organ nie wniósł sprzeciwu – oryginał, albo \n-Zaświadczeniem wydanym przez właściwy organ, że nie wnosi sprzeciwu w przypadku, gdy zawiadomienie o zakończeniu robót budowlanych będzie przedkładane przed upływem 14 dni - oryginał lub kopia poświadczona za zgodność z oryginałem przez notariusza lub potwierdzona za zgodność z oryginałem przez upoważnionego pracownika Agencji lub podmiot, który wydał dokument;"]
[7,"Protokoły odbioru robót lub protokoły montażu lub rozruchu maszyn i urządzeń (jeżeli dotyczy) albo oświadczenie Beneficjenta/ Beneficjentów o poprawnym wykonaniu robót budowlanych lub montażu lub rozruchu z udziałem środków własnych - oryginał lub kopia poświadczona za zgodność z oryginałem przez notariusza lub potwierdzona za zgodność z oryginałem przez upoważnionego pracownika Agencji lub podmiot, który wydał dokument;"]
[8,"Dokumentacja dotycząca ewidencji lub wykazu środków trwałych oraz wartości niematerialnych i prawnych – w przypadku Beneficjenta/ Beneficjentów   zobowiązanego/ zobowiązanych  do prowadzenia takiej ewidencji lub wykazu – kopia poświadczona za zgodność z oryginałem przez notariusza lub potwierdzona za zgodność z oryginałem przez upoważnionego pracownika Agencji, podmiot, który wydał dokument lub przez Beneficjenta;"]
[9,"Oświadczenie Beneficjenta/ Beneficjentów o  prowadzeniu oddzielnego sytemu rachunkowości albo o korzystaniu z odpowiedniego kodu rachunkowego wraz z wyciągami z polityki rachunkowości i zakładowego planu kont oraz z wydrukami z kont księgowych w ramach prowadzonych ksiąg rachunkowych w rozumieniu art. 66 ust. 1 lit. c pkt i Rozporządzenia Parlamentu Europejskiego i Radu (UE) nr 1305/2013, dla wszystkich transakcji związanych z realizacją operacji, jeżeli dotyczy – na formularzu udostępnionym przez Agencję - oryginał;"]
[10,"Zestawienie faktur lub równoważnych dokumentów księgowych, wypełnione przez Beneficjenta/ Beneficjentów na formularzu opracowanym i udostępnionym przez Agencję, gdy na podstawie odrębnych przepisów Beneficjent/ Beneficjenci , nie jest zobowiązany /nie są zobowiązani  do prowadzenia ksiąg rachunkowych – na formularzu udostępnionym przez Agencję -oryginał;      "]
[11,"Informacja o numerze rachunku bankowego prowadzonego przez bank lub spółdzielczą kasę oszczędnościowo-kredytową, wskazująca numer rachunku bankowego Beneficjenta/ Beneficjentów lub cesjonariusza, na który Agencja przekazuje środki finansowe w ramach pomocy wskazany w: \n− zaświadczeniu z banku lub spółdzielczej kasy oszczędnościowo-kredytowej, wskazującym numer rachunku bankowego lub rachunku prowadzonego przez spółdzielczą kasę oszczędnościowo-kredytową, na który mają być przekazane środki finansowe - jeżeli dotyczy - oryginał (dołączony do pierwszego wniosku o płatność), \nalbo\n− kopii umowy z bankiem lub spółdzielczą kasą oszczędnościowo-kredytową na prowadzenie rachunku bankowego lub rachunku prowadzonego przez spółdzielczą kasę oszczędnościowo-kredytową, lub jej część, pod warunkiem, że ta część będzie zawierać dane niezbędne do dokonania przelewu środków finansowych. W przypadku, jeśli w ww. umowie będzie wyszczególniony więcej niż jeden numer rachunku bankowego, oświadczenie Beneficjenta/ danego Beneficjenta  , iż jest to rachunek, na który mają być przekazane środki finansowe - jeżeli dotyczy -kopia poświadczona za zgodność z oryginałem przez notariusza lub potwierdzona za zgodność z oryginałem przez upoważnionego pracownika Agencji lub podmiot, który wydał dokument (dołączona do pierwszego wniosku o płatność), \nalbo\n−  oświadczeniu Beneficjenta o innym numerze rachunku bankowego prowadzonego w banku lub rachunku prowadzonego w spółdzielczej kasie oszczędnościowo-kredytowej, na który mają być przekazane środki finansowe - jeżeli dotyczy - oryginał (dołączony do pierwszego wniosku o płatność), \nalbo\n− innym dokumencie z banku lub spółdzielczej kasy oszczędnościowo-kredytowej świadczącym o aktualnym numerze rachunku bankowego lub rachunku prowadzonego przez spółdzielczą kasę oszczędnościowo-kredytową, pod warunkiem, że będzie on zawierał dane niezbędne do dokonania przelewu środków finansowych - jeżeli dotyczy - oryginał lub kopia poświadczona za zgodność z oryginałem przez notariusza lub potwierdzona za zgodność z oryginałem przez upoważnionego pracownika Agencji lub podmiot, który wydał dokument; (dołączony do pierwszego wniosku o płatność);\n"]
[null,"Przedkładana informacja o numerze rachunku bankowego musi zawierać co najmniej: imię i nazwisko/pełną nazwę posiadacza rachunku, nazwę banku, w którym prowadzony jest rachunek bankowy, numer oddziału oraz nazwę miejscowości, w której znajduje się siedziba oddziału banku oraz numer rachunku bankowego w standardzie NRB, a w przypadku składania oświadczenia Beneficjenta podpis składającego oświadczenie.  \nW przypadku, gdy numer rachunku bankowego lub rachunku prowadzonego w spółdzielczej kasie oszczędnościowo-kredytowej ulegnie zmianie, Beneficjent jest zobowiązany niezwłocznie przedłożyć Agencji aktualną informację o numerze rachunku bankowego, jednak nie później niż wraz z pierwszym wnioskiem o płatność/kolejnym wnioskiem o płatność.\n"]
[12,"Umowy z dostawcami lub wykonawcami zawierające specyfikację będącą podstawą wystawienia każdej z przedstawionych faktur lub innych dokumentów o równoważnej wartości dowodowej – jeżeli nazwa towaru lub usługi w przedstawionej fakturze lub dokumencie o równoważnej wartości dowodowej odnosi się do umów zawartych przez Beneficjenta/ Beneficjentów  lub nie pozwala na precyzyjne określenie kosztów kwalifikowalnych - kopia poświadczona za zgodność z oryginałem przez notariusza  lub potwierdzona za zgodność z oryginałem przez upoważnionego pracownika Agencji lub podmiot, który wydał dokument;"]
[13,"Dokumenty celne (Jednolity Dokument Administracyjny SAD) zawierające stosowną adnotację celników przeprowadzających odprawę, jako potwierdzenia dopuszczenia towarów do obrotu – dotyczy maszyn i urządzeń zakupionych w krajach nienależących do Unii Europejskiej - kopia poświadczona za zgodność z oryginałem przez notariusza lub potwierdzona za zgodność z oryginałem przez upoważnionego pracownika Agencji lub podmiot, który wydał dokument;"]
[14,"Informacje dotyczące parametrów zakupionych maszyn/urządzeń – na formularzu udostępnionym przez Agencję – oryginał;"]
[15,"Umowa cesji wierzytelności – jeżeli dotyczy – oryginał;"]
[16,"Pełnomocnictwo – w przypadku, gdy zostało udzielone innej osobie niż podczas składania wniosku o przyznanie pomocy lub gdy zmienił się zakres poprzednio udzielonego pełnomocnictwa – oryginał lub kopia poświadczona za zgodność z oryginałem przez notariusza lub potwierdzona za zgodność z oryginałem przez upoważnionego pracownika Agencji;"]
[17,"Wyciąg z wyodrębnionego rachunku bankowego Beneficjenta/Beneficjentów przeznaczonego do obsługi zaliczki - jeżeli dotyczy;"]
[18,"Oświadczenie Beneficjenta/Beneficjentów o wysokości oprocentowania wyodrębnionego rachunku bankowego  przeznaczonego do obsługi zaliczki, na formularzu opracowanym i udostępnionym przez Agencję - jeżeli dotyczy – na formularzu udostępnionym przez Agencję -oryginał;      "]
[19,"Dokument z banku potwierdzający wysokość oprocentowania oraz sposób jego naliczania (np. miesięcznie, kwartalnie, rocznie) - dotyczy przypadku, gdy wyodrębniony rachunek bankowy jest oprocentowany;"]
[20,"Inne załączniki - jeśli dotyczy."]
["Liczba załączników (ogółem)",null,{"$f":"SUM(C3:C30)","v":0}]

{"sheet":"II.A Posiadacz","index":6,"n_rows":101,"n_cols":31,"rows_kept":101,"cut":false,"hidden":true,"merged":[[92,0,92,36],[93,2,94,36],[95,2,96,36],[97,2,98,36],[100,1,100,14],[100,22,101,36],[101,1,101,15],[85,1,85,36],[86,1,86,36],[87,1,87,36],[88,1,88,36],[89,2,89,35],[90,1,90,14],[90,22,90,36],[79,1,79,36],[80,1,80,36],[81,1,81,36],[82,1,82,36],[83,1,83,36],[84,1,84,36],[72,1,72,29],[72,30,72,35],[75,0,75,35],[76,0,76,35],[77,1,77,36],[78,1,78,36],[66,1,66,36],[67,1,67,18],[67,19,67,35],[68,1,68,18],[68,19,68,35],[70,1,70,36],[64,2,64,15],[64,16,64,28],[64,29,64,35],[65,2,65,15],[65,16,65,28],[65,29,65,35],[62,2,62,15],[62,16,62,28],[62,29,62,35],[63,2,63,15],[63,16,63,28],[63,29,63,35],[60,1,60,4],[60,5,60,8],[60,9,60,17],[60,18,60,25],[60,26,60,35],[61,2,61,34],[58,1,58,5],[58,6,58,15],[58,16,58,25],[58,26,58,35],[59,1,59,4],[59,5,59,8],[59,9,59,17],[59,18,59,25],[59,26,59,35],[56,1,56,7],[56,8,56,15],[56,16,56,24],[56,25,56,35],[57,1,57,5],[57,6,57,15],[57,16,57,25],[57,26,57,35],[52,1,52,17],[52,18,52,35],[53,1,53,17],[53,18,53,35],[54,1,54,35],[55,1,55,7],[55,8,55,15],[55,16,55,24],[55,25,55,35],[50,1,50,6],[50,7,50,11],[50,12,50,22],[50,23,50,35],[51,1,51,6],[51,7,51,11],[51,12,51,22],[51,23,51,35],[48,1,48,5],[48,6,48,15],[48,16,48,25],[48,26,48,35],[49,1,49,5],[49,6,49,15],[49,16,49,25],[49,26,49,35],[46,1,46,7],[46,8,46,15],[46,16,46,24],[46,25,46,35],[47,1,47,7],[47,8,47,15],[47,16,47,24],[47,25,47,35],[39,22,39,32],[41,1,41,9],[41,11,41,22],[42,1,42,9],[42,11,42,22],[45,1,45,35],[34,1,36,18],[34,19,34,26],[34,27,34,35],[35,19,35,35],[36,19,36,35],[38,1,38,10],[38,12,38,20],[38,22,38,32],[26,5,26,34],[30,2,30,9],[30,11,30,35],[32,2,32,35],[33,1,33,18],[33,19,33,26],[33,27,33,35],[20,5,20,34],[22,5,22,34],[24,5,24,34],[7,11,7,32],[9,1,9,9],[12,2,12,3],[12,4,12,28],[12,29,12,35],[13,1,13,2],[13,3,13,35],[0,0,0,12],[0,13,0,36],[1,1,2,35],[4,2,5,10],[4,12,5,23],[4,25,5,36],[14,5,14,34],[16,5,16,34],[18,5,18,34]]}
["Beneficjent"]
[null," II.A. DANE IDENTYFIKACYJNE: "]
[]
[]
[null,null,"WSPÓŁPOSIADACZA GOSPODARSTWA ROLNEGO ",null,null,null,null,null,null,null,null,null,"MAŁŻONKA BENEFICJENTA",null,null,null,null,null,null,null,null,null,null,null,null,"ROLNIKA W GOSPODARSTWIE KTÓREGO UBEZPIECZONY JEST DOMOWNIK"]
[]
[]
[null,null,null,null,null,null,null,null,null,null,null,"INNE: (wymienić jakie)"]
[]
[null,"1. NUMER IDENTYFIKACYJNY:",null,null,null,null,null,null,null,null,"1.1."]
[]
[]
[null,null,"1.2. ",null,"Wpisany numer jest numerem nadanym osobie, której dane zawarto poniżej",null,null,null,null,null,null,null,null,null,null,null,null,null,null,null,null,null,null,null,null,null,null,null,null,"(wybierz z listy)"]
[]
[]
[]
[]
[]
[]
[]
[]
[]
[]
[]
[]
[]
[]
[]
[]
[]
[null,"2.","Rodzaj podmiotu:",null,null,null,null,null,null,null,null,"(wybierz z listy)"]
[]
[null,"3.","Dane identyfikacyjne:"]
[null,"3.1. Nazwisko/Nazwa: ",null,null,null,null,null,null,null,null,null,null,null,null,null,null,null,null,null,"3.2. Pierwsze imię",null,null,null,null,null,null,null,"3.3. Drugie imię*"]
[]
[null,null,null,null,null,null,null,null,null,null,null,null,null,null,null,null,null,null,null,"3.4. PESEL/data urodzenia"]
[]
[]
[null,"3.5. NIP",null,null,null,null,null,null,null,null,null,null,"3.6. KRS",null,null,null,null,null,null,null,null,null,"3.7. Płeć*"]
[null,null,null,null,null,null,null,null,null,null,null,null,null,null,null,null,null,null,null,null,null,null,"(wybierz z listy)"]
[]
[null,"3.8. Kod kraju*",null,null,null,null,null,null,null,null,null,"3.9. Seria i numer  paszportu lub innego dokumenu tożsamości"]
[null,"(wybierz z listy)"]
[]
[]
[null,"4. Adres (miejsce zamieszkania i adres osoby fizycznej albo siedziba i adres w przypadku pozostałych form prawnych)"]
[null,"4.1. Kraj",null,null,null,null,null,null,"4.2. Województwo",null,null,null,null,null,null,null,"4.3. Powiat",null,null,null,null,null,null,null,null,"4.4. Gmina"]
[null,"(wybierz z listy)",null,null,null,null,null,null,"(wybierz z listy)"]
[null,"4.5. Kod pocztowy",null,null,null,null,"4.6. Poczta",null,null,null,null,null,null,null,null,null,"4.7. Miejscowość ",null,null,null,null,null,null,null,null,null,"4.8. Ulica"]
[]
[null,"4.9. Nr domu",null,null,null,null,null,"4.10. Nr lokalu",null,null,null,null,"4.11. Telefon komórkowy*",null,null,null,null,null,null,null,null,null,null,"4.12. Telefon stacjonarny*"]
[]
[null,"4.13. E-mail*",null,null,null,null,null,null,null,null,null,null,null,null,null,null,null,null,"4.14. Adres www*"]
[]
[null,"5. Adres do korespondencji (wypełnić, jeśli jest inny niż w pkt 4 lub ustanowiono pełnomocnika)"]
[null,"5.1. Kraj",null,null,null,null,null,null,"5.2. Województwo",null,null,null,null,null,null,null,"5.3. Powiat",null,null,null,null,null,null,null,null,"5.4. Gmina"]
[null,"(wybierz z listy)",null,null,null,null,null,null,"(wybierz z listy)"]
[null,"5.5. Kod pocztowy",null,null,null,null,"5.6. Poczta",null,null,null,null,null,null,null,null,null,"5.7. Miejscowość",null,null,null,null,null,null,null,null,null,"5.8 Ulica"]
[]
[null,"5.9. Nr domu",null,null,null,"5.10. Nr lokalu",null,null,null,"5.11.Telefon komórkowy*",null,null,null,null,null,null,null,null,"5.12. Telefon stacjonarny*",null,null,null,null,null,null,null,"5.13. E-mail*"]
[]
[null,"6.","Dane osób upoważnionych do repezentowania podmiotu  (dotyczy podmiotów niebędących osobą fizyczną)"]
[null,"Lp.","Nazwisko",null,null,null,null,null,null,null,null,null,null,null,null,null,"Imię",null,null,null,null,null,null,null,null,null,null,null,null,"PESEL"]
[null,"6.1."]
[null,"6.2."]
[null,"6.3."]
[null,"7. Dane pełnomocnika "]
[null,"7.1. Nazwisko: ",null,null,null,null,null,null,null,null,null,null,null,null,null,null,null,null,null,"7.2. Pierwsze imię"]
[]
[]
[null,"8. Rozdzielność majątkowa małżonków"]
[]
[null,"8.1. Posiadam rozdzielność majątkową z podmiotem wskazanym w części II wniosku",null,null,null,null,null,null,null,null,null,null,null,null,null,null,null,null,null,null,null,null,null,null,null,null,null,null,null,null,"(wybierz z listy)"]
[null,"* Dane nieobowiązkowe."]
[]
["Oświadczenie współposiadacza/małżonka/rolnika\n"]
["Oświadczam, że zostałam(-em) poinformowana(-y) i zrozumiałam(-em), że:"]
["1.","administratorem moich danych osobowych jest Agencja Restrukturyzacji i Modernizacji Rolnictwa z siedzibą w Warszawie, Al. Jana Pawła II 70, 00-175 Warszawa;"]
["2.","z administratorem ochrony danych osobowych mogę się kontaktować poprzez adres e-mail: info@arimr.gov.pl  lub pisemnie na adres korespondencyjny Centrali Agencji Restrukturyzacji i Modernizacji Rolnictwa, ul. Poleczki 33, 02-822 Warszawa;"]
["3.","administrator danych wyznaczył inspektora ochrony danych, z którym można kontaktować się w sprawach dotyczących przetwarzania danych osobowych oraz korzystania z praw związanych z przetwarzaniem danych, poprzez adres e-mail: iod@arimr.gov.pl  lub pisemnie na adres korespondencyjny administratora danych, wskazany w pkt. 2; "]
["4.","zebrane dane osobowe będą przetwarzane przez administratora danych na podstawie art. 6 ust. 1 lit. c rozporządzenia Parlamentu Europejskiego i Rady (UE) 2016/679 z dnia 27 kwietnia 2016 r. w sprawie ochrony osób fizycznych w związku z przetwarzaniem danych osobowych i w sprawie swobodnego przepływu takich danych oraz uchylenia dyrektywy 95/46/WE ogólne rozporządzenie o ochronie danych (Dz. Urz. UE L 119 z 04.05.27.04.2016, str. 1), dalej „Rozporządzenie”, gdy jest to niezbędne do wypełnienia obowiązku prawnego ciążącego na administratorze danych (dane obowiązkowe) lub art. 6 ust. 1 lit. a Rozporządzenia, tj. na podstawie odrębnej zgody na przetwarzanie danych osobowych, która obejmuje zakres danych szerszy, niż to wynika z powszechnie obowiązującego prawa (dane nieobowiązkowe);"]
["5.","zebrane dane osobowe na podstawach, o których mowa w  pkt. 4, będą przetwarzane przez administratora danych w celu realizacji zadań wynikających z art. 1 pkt 1 w zw. z art. 6 ust. 2 ustawy z dnia 20 lutego 2015 r. o wspieraniu rozwoju obszarów wiejskich z udziałem środków Europejskiego Funduszu Rolnego na rzecz Rozwoju Obszarów Wiejskich w ramach Programu Rozwoju Obszarów Wiejskich na lata 2014-2020 (Dz. U. z 2018 r poz. 627), w zw. z rozporządzeniem Ministra Rolnictwa i Rozwoju Wsi z dnia 23 października 2015 r. w sprawie szczegółowych warunków i trybu przyznawania, wypłaty oraz zwrotu pomocy finansowej na operacje typu „Premie na rozpoczęcie działalności pozarolniczej” w ramach poddziałania „Pomoc na rozpoczęcie pozarolniczej działalności gospodarczej na obszarach wiejskich\"  objętego Programem Rozwoju Obszarów Wiejskich  na lata 2014–2020 (Dz. U.  poz. 1843, z 2016 r. poz. 1564 oraz z 2017 r. poz. 1972)."]
["6.","zebrane dane osobowe mogą być udostępniane podmiotom publicznym uprawnionym do przetwarzania danych osobowych na podstawie przepisów powszechnie obowiązującego prawa oraz podmiotom przetwarzającym dane osobowe na zlecenie administratora w związku z wykonywaniem powierzonego im zadania w drodze zawartej umowy, np. dostawcom IT;"]
["7.","zebrane dane osobowe na podstawie art. 6 ust. 1 lit. c) Rozporządzenia, będą przetwarzane przez okres 5 lat, licząc od dnia 1 stycznia roku następującego po roku, w którym upłynął okres zobowiązań w związku z przyznaniem pomocy  na operacje typu „Premie na rozpoczęcie działalności pozarolniczej” w ramach poddziałania „Pomoc na rozpoczęcie pozarolniczej działalności gospodarczej na obszarach wiejskich\". Okres przechowywania danych może zostać każdorazowo przedłużony o okres przedawnienia roszczeń, jeżeli przetwarzanie danych będzie niezbędne do dochodzenia roszczeń lub do obrony przed takimi roszczeniami przez administratora danych.\nPonadto, okres przechowywania danych może zostać przedłużony na okres potrzebny do przeprowadzenia archiwizacji;"]
["8.","dane osobowe zebrane na podstawie art. 6 ust. 1 lit. a) Rozporządzenia, tj. na podstawie odrębnej zgody na przetwarzanie danych osobowych będą przetwarzane przez okres 5 lat, licząc od dnia 1 stycznia roku następującego po roku, w którym upłynął okres zobowiązań w związku z przyznaniem pomocy lub do czasu jej odwołania; "]
["9.","przysługuje mi prawo dostępu do moich danych, prawo żądania ich sprostowania, usunięcia lub ograniczenia ich przetwarzania, w przypadkach określonych w Rozporządzeniu;"]
["10.","w przypadkach, w których przetwarzanie moich danych osobowych odbywa się na podstawie art. 6 ust. 1 lit. a Rozporządzenia, tj. na podstawie odrębnej zgody na przetwarzanie danych osobowych, przysługuje mi prawo do odwołania tej zgody lub zmiany  w dowolnym momencie, bez wpływu na zgodność z prawem przetwarzania, którego dokonano na podstawie zgody przed jej odwołaniem;"]
["11.","w przypadku uznania, że przetwarzanie danych osobowych narusza przepisy Rozporządzenia, przysługuje mi prawo wniesienia skargi do Prezesa Urzędu Ochrony Danych Osobowych;"]
["12.","podanie danych osobowych na podstawie art. 6 ust. 1 lit. c Rozporządzenia we wniosku o płatność  na operacje typu „Premie na rozpoczęcie działalności pozarolniczej” w ramach poddziałania „Pomoc na rozpoczęcie pozarolniczej działalności gospodarczej na obszarach wiejskich\"  wynika z obowiązku zawartego w przepisach powszechnie obowiązujących, a konsekwencją niepodania tych danych osobowych może być np. pozostawienie wniosku bez rozpoznania."]
[]
[null,"miejscowość i data",null,null,null,null,null,null,null,null,null,null,null,null,null,null,null,null,null,null,null,null,"(czytelny podpis współposiadacza/małżonka/rolnika)"]
[]
["Zgoda współposiadacza/małżonka/rolnika\n(aby wyrazić zgodę należy wybrać z listy rozwijanej X)"]
[null,null,"Wyrażam zgodę na przetwarzanie przez Agencję Restrukturyzacji i Modernizacji Rolnictwa z siedzibą w Warszawie, Al. Jana Pawła II nr 70, 00-175 Warszawa (adres do korespondencji: ul. Poleczki 33, 02-822 Warszawa), jako administratora danych, moich danych osobowych podanych w zakresie szerszym, niż jest to wymagane na podstawie przepisów powszechnie obowiązującego prawa, oznaczonych w formularzu Wniosku o płatność na operacje typu „Premie na rozpoczęcie działalności pozarolniczej” w ramach poddziałania „Pomoc na rozpoczęcie pozarolniczej działalności gospodarczej na obszarach wiejskich” objętego Programem Rozwoju Obszarów Wiejskich na lata 2014-2020” jako „dane nieobowiązkowe”, w celu wypłaty pomocy, kontroli realizacji zobowiązań oraz ewentualnego dochodzenia kwot nienależnie lub nadmiernie wypłaconych."]
[]
[null,null,"Wyrażam zgodę na przetwarzanie przez Agencję Restrukturyzacji i Modernizacji Rolnictwa z siedzibą w Warszawie, Al. Jana Pawła II nr 70, 00-175 Warszawa (adres do korespondencji: ul. Poleczki 33, 02-822 Warszawa), jako administratora danych, moich danych osobowych w następującym zakresie: oznaczonych w formularzu Wniosku o płatność na operacje typu „Premie na rozpoczęcie działalności pozarolniczej” w ramach poddziałania „Pomoc na rozpoczęcie pozarolniczej działalności gospodarczej na obszarach wiejskich” objętego Programem Rozwoju Obszarów Wiejskich na lata 2014-2020” jako „dane nieobowiązkowe”, w celu otrzymywania/kierowania do mnie treści informacyjnych lub promocyjnych o działaniach realizowanych przez Agencję, za pośrednictwem SMS/MMS na podany przeze mnie numer telefonu."]
[]
[null,null,"Jestem świadomy/a, że podanie danych w każdej ze zgód jest dobrowolne, ale niezbędne do realizacji celu wskazanego w ich treści. Przyjmuję do wiadomości, że każdą z powyższych zgód mogę wycofać w dowolnym momencie, poprzez przesłanie „oświadczenia o wycofaniu zgody” na adres korespondencyjny administratora danych z dopiskiem „Ochrona danych osobowych” lub na adres poczty elektronicznej (info@arimr.gov.pl, iod@arimr.gov.pl). Wycofanie zgody nie wpływa na zgodność z prawem przetwarzania, którego dokonano na podstawie zgody przed jej wycofaniem."]
[]
[]
[null,"miejscowość i data",null,null,null,null,null,null,null,null,null,null,null,null,null,null,null,null,null,null,null,null,"(czytelny podpis współposiadacza/małżonka/rolnika)"]

{"sheet":"IV.1 zał WoP","index":7,"n_rows":9,"n_cols":3,"rows_kept":9,"cut":false,"hidden":false,"merged":[[0,0,0,2],[6,0,6,1],[8,0,8,2],[7,0,7,2],[10,0,10,2]]}
["IV.1. Załączniki do wniosku o płatność pierwszej raty pomocy"]
["LP","Nazwa załącznika","Liczba"]
[1,"Dokument potwierdzający rozpoczęcie realizacji biznesplanu zgodnie z § 13 ust. 4  rozporządzenia1, zwłaszcza: \n• dokumenty potwierdzające rozpoczęcie prac związanych z inwestycjami, o których mowa w § 3 ust. 2 pkt 3 lit. b rozporządzenia1 - oryginał lub kopia2 \n• umowa, w wyniku której ma nastąpić przeniesienie własności lub posiadania maszyny, urządzenia, środka transportu lub wyposażenia -  oryginał lub kopia2 \n• potwierdzenie utworzenia co najmniej jednego ze wskazanych w Biznesplanie miejsc pracy, o których mowa w § 3 ust. 1 pkt 3 rozporządzenia1 -  jeżeli dotyczy (np. umowa o pracę, deklaracje ZUS) - oryginał lub kopia2 \n"]
[2,"Zaświadczenie z Zakładu Ubezpieczeń Społecznych o okresie podlegania ubezpieczeniom społecznym, określonym w przepisach o systemie ubezpieczeń społecznych, z tytułu prowadzenia działalności określonej w § 5 rozporządzenia1, z wyłączeniem działalności, która wymaga wpisu do ewidencji prowadzonej przez jednostkę samorządu terytorialnego obowiązaną do prowadzenia odpowiedniego typu szkół i placówek publicznych - oryginał lub kopia2 "]
[3,"Kopia2 ostatecznej decyzji o pozwoleniu na budowę lub zgłoszenia budowy, jeżeli jest wymagane przepisami ustawy z dnia 7 lipca 1994 r. – Prawo budowlane (Dz. U. z 2018 r. poz. 1202, 1276 i 1496)"]
[4,"Oryginał lub urzędowo poświadczony odpis pełnomocnictwa/upoważnienia udzielonego przez beneficjenta do  występowania w jego imieniu - jeżeli zostało udzielone i jest inne niż dołączone do wniosku o przyznanie pomocy"]
["Liczba załączników (ogółem)",null,{"$f":"SUM(C3:C6)","v":0}]
["1Rozporządzenie Ministra Rolnictwa i Rozwoju Wsi z dnia 25 lipca 2016 r. w sprawie szczegółowych warunków i trybu przyznawania, wypłaty oraz zwrotu pomocy finansowej na operacje typu „Premie na rozpoczęcie działalności pozarolniczej” w ramach poddziałania „Pomoc na rozpoczęcie pozarolniczej działalności gospodarczej na obszarach wiejskich” objętego Programem Rozwoju Obszarów Wiejskich na lata 2014–2020 (Dz. U. z 2016 r. poz. 1196, z 2017 r. poz. 1013 oraz z 2018 r. poz. 1071)."]
["2 Kopie dokumentów dołącza się w formie kopii potwierdzonych za zgodność z oryginałem przez pracownika ARiMR lub podmiot, który wydał dokument, lub poświadczonych za zgodność z oryginałem przez notariusza lub przez występującego w sprawie pełnomocnika będącego radcą prawnym albo adwokatem."]

{"sheet":"IV.2 zał WoP","index":8,"n_rows":25,"n_cols":3,"rows_kept":25,"cut":false,"hidden":false,"merged":[[0,0,0,2],[22,0,22,1],[24,0,24,2],[23,0,23,2]]}
["IV.2 Załączniki do wniosku o płatność drugiej raty pomocy "]
["LP","Nazwa załącznika","Liczba"]
["1.","Sprawozdanie z realizacji Biznesplanu sporządzone zgodnie ze wzorem udostępnionym przez ARiMR - oryginał - załącznik nr 1a"]
["2.","Sprawozdanie z realizacji Biznesplanu sporządzone zgodnie ze wzorem udostępnionym przez ARiMR - Harmonogram rzeczowo - finansowy z realizacji operacji na formularzu udostępnionym przez ARiMR - oryginał -załącznik nr 1b"]
["3.","Sprawozdanie z realizacji Biznesplanu sporządzone zgodnie ze wzorem udostępnionym przez ARiMR - Informacje dotyczące parametrów zakupionych maszyn/urządzeń - na formularzu udostępnionym przez ARiMR - oryginał -załącznik nr 1c"]
["4.","Kopia dokumentacji potwierdzającej realizację działań, o których mowa w § 3 ust. 1 pkt 4 rozporządzenia1 w tym:"]
["a.","Faktury, rachunki lub inne dokumenty księgowe o równoważnej wartości dowodowej lub ich kopie, potwierdzające realizację zadań wymienionych w harmonogramie rzeczowo-finansowym zawartym w Biznesplanie, wraz z potwierdzeniami zapłaty- kopie2."]
["b.","Pozwolenie na użytkowanie obiektu budowlanego - jeżeli taki obowiązek wynika z przepisów prawa budowlanego - kopia2"]
["c.","Zawiadomienie właściwego organu o zakończeniu robót budowlanych złożone co najmniej 14 dni przed zamierzonym terminem przystąpienia do użytkowania, jeżeli obowiązek taki wynika z przepisów prawa budowlanego  - oryginał lub kopia2 wraz z:\n- oświadczeniem Beneficjenta, że w ciągu 14 dni od dnia zgłoszenia zakończenia robót budowlanych właściwy organ nie wniósł sprzeciwu – oryginał, albo \n-zaświadczeniem wydanym przez właściwy organ, że nie wnosi sprzeciwu w przypadku, gdy zawiadomienie o zakończeniu robót budowlanych będzie przedkładane przed upływem 14 dni"]
["d.","Protokoły odbioru robót lub protokoły montażu lub rozruchu maszyn i urządzeń (jeżeli dotyczy) albo oświadczenie Beneficjenta o poprawnym wykonaniu robót budowlanych lub montażu lub rozruchu z udziałem środków własnych"]
["e.","Ostateczne pozwolenie wodnoprawne – jeżeli dla robót wymagana była decyzja o zatwierdzeniu projektu prac geologicznych - kopia2"]
["f.","Opinia Powiatowego Inspektora Sanitarnego, co do zgodności z warunkami sanitarnymi określonymi przepisami Unii Europejskiej w zakresie objętym operacją (w przypadku, gdy odrębne przepisy prawa określają, jakie warunki powinny być spełniane przy realizacji inwestycji objętej operacją) - kopia2"]
["g.","Dokumenty celne (Jednolity Dokument Administracyjny SAD) zawierające stosowną adnotację celników przeprowadzających odprawę, jako potwierdzenia dopuszczenia towarów do obrotu – dotyczy maszyn i urządzeń zakupionych w krajach nienależących do Unii Europejskiej - kopia2"]
["h.","Dowód rejestracyjny, jeżeli jest wymagany odrębnymi przepisami - dotyczy w szczególności ciągników oraz środków transportu objętych finansowaniem - kopia2"]
["5.","Oryginał lub urzędowo poświadczony odpis pełnomocnictwa/upoważnienia udzielonego przez beneficjenta do występowania w jego imieniu - jeżeli zostało udzielone i jest inne niż dołączone do wniosku o przyznanie pomocy lub we wniosku o płatność pierwszej raty pomocy"]
["6.","Dokumenty potwierdzające spełnienie warunku dotyczącego utworzenia miejsc pracy, które  były podstawą  wyboru operacji, określonych w § 10 ust. 2 pkt 5 rozporządzenia1:"]
["6.a","Umowy o pracę wraz z zakresami czynności (dla etatów powstałych w wyniku realizacji operacji) (nie dotyczy samozatrudnienia) - kopia2"]
["6.b","Zgłoszenie do ubezpieczeń ZUS ZUA (dla etatów powstałych w wyniku realizacji operacji)  - kopia2"]
["6.c","Deklaracja rozliczeniowa ZUS DRA (wraz z ZUS RCA (RCX), ZUS RSA, ZUS RZA) - kopia2"]
["7.","Zaświadczenie z Zakładu Ubezpieczeń Społecznych o okresie podlegania ubezpieczeniom społecznym, określonym w przepisach o systemie ubezpieczeń społecznych"]
["8.","Dokumenty potwierdzające zarejestrowanie pozarolniczej działalności gospodarczej w ewidencji prowadzonej przez jednostkę samorządu terytorialnego obowiązaną do prowadzenia odpowiedniego typu szkół i placówek publicznych"]
["9.","Inne załączniki, w tym dokumenty potwierdzające osiągnięcie celów i pozostałych wskaźników realizacji operacji"]
["Liczba załączników (ogółem)",null,{"$f":"SUM(C3:C22)","v":0}]
["1 Rozporządzenie Ministra Rolnictwa i Rozwoju Wsi z dnia 25 lipca 2016 r. w sprawie szczegółowych warunków i trybu przyznawania, wypłaty oraz zwrotu pomocy finansowej na operacje typu „Premie na rozpoczęcie działalności pozarolniczej” w ramach poddziałania „Pomoc na rozpoczęcie pozarolniczej działalności gospodarczej na obszarach wiejskich” objętego Programem Rozwoju Obszarów Wiejskich na lata 2014–2020 (Dz. U. z 2016 r. poz. 1196, z 2017 r. poz. 1013 oraz z 2018 r. poz. 1071)."]
["2 Kopie dokumentów dołącza się w formie kopii potwierdzonych za zgodność z oryginałem przez pracownika ARiMR lub podmiot, który wydał dokument, lub poświadczonych za zgodność z oryginałem przez notariusza lub przez występującego w sprawie pełnomocnika będącego radcą prawnym albo adwokatem."]

{"sheet":"V-IX Ośw. Beneficjenta","index":9,"n_rows":65,"n_cols":47,"rows_kept":65,"cut":false,"hidden":false,"merged":[[32,2,32,15],[32,22,32,35],[27,3,27,35],[28,3,28,35],[0,1,0,33],[1,2,1,35],[2,3,2,35],[4,3,4,35],[3,3,3,35],[5,3,5,35],[6,3,6,35],[7,3,7,35],[8,3,8,35],[9,37,9,38],[10,3,10,35],[13,3,13,35],[9,3,9,35],[19,3,19,35],[11,3,11,35],[12,3,12,35],[15,2,15,15],[15,22,15,35],[18,3,18,35],[17,1,17,35],[40,3,41,35],[42,3,43,35],[29,3,29,35],[16,1,16,35],[37,1,37,2],[37,3,37,35],[38,3,39,35],[34,2,34,15],[34,22,34,35],[20,3,20,35],[21,3,21,35],[22,3,22,35],[23,3,23,35],[24,3,24,35],[25,3,25,35],[26,3,26,35],[49,3,50,35],[52,3,53,35],[55,3,55,16],[55,23,55,36],[45,2,45,15],[45,22,45,35],[48,1,48,2],[48,3,48,36],[57,1,57,2],[57,3,57,35],[62,3,63,35],[64,3,65,35],[61,3,61,35],[58,3,58,35],[60,3,60,16],[60,23,60,36],[59,3,59,16]]}
[null,"V. OŚWIADCZENIE BENEFICJENTA"]
[]
[null,"1.",null,"Znane mi są zasady ubiegania się, przyznawania, wypłaty oraz zwrotu pomocy finansowej określone w przepisach rozporządzenia Ministra Rolnictwa i Rozwoju Wsi z dnia 25 lipca 2016 r. w sprawie szczegółowych warunków i trybu przyznawania, wypłaty oraz zwrotu pomocy finansowej na operacje typu „Premie na rozpoczęcie działalności pozarolniczej” w ramach poddziałania „Pomoc na rozpoczęcie pozarolniczej działalności gospodarczej na obszarach wiejskich” objętego Programem Rozwoju Obszarów Wiejskich na lata 2014–2020  (Dz. U. z 2016 r. poz. 1196, z 2017 r. poz. 1013 oraz z 2018 r. poz. 1071) oraz wymagania uszczegółowione w Instrukcji wypełniania wniosku o płatność;                "]
[null,"2.",null,"Oświadczam, że informacje zawarte we wniosku o płatność oraz jego załącznikach są prawdziwe i zgodne ze stanem prawnym i faktycznym; znane mi są skutki składania fałszywych oświadczeń wynikające z art. 297 § 1 ustawy z dnia 6 czerwca 1997r. - Kodeks karny (Dz. U. z 2017 r. poz. 2204 oraz z 2018 r. poz. 20, 305 i 663);"]
[null,"3.",null,"Oświadczam, iż nie podlegam zakazowi dostępu do środków publicznych, o których mowa w art. 5 ust. 3 pkt 4 ustawy z dnia 27 sierpnia 2009 r. o finansach publicznych (Dz. U. z 2017 r. poz. 2077 oraz z 2018 r. poz. 62 i 1000), na podstawie prawomocnego orzeczenia sądu;\nJednocześnie zobowiązuję się do niezwłocznego poinformowania ARiMR o zakazie dostępu do środków publicznych, o których mowa w art. 5 ust. 3 pkt 4 ustawy z dnia 27 sierpnia 2009 r. o finansach publicznych, na podstawie prawomocnego orzeczenia sądu, orzeczonym w stosunku do mnie po złożeniu wniosku o płatność;"]
[null,"4.",null,"Oświadczam, że jestem świadomy obowiązku informowania, w okresie realizacji operacji, opinii publicznej o pomocy otrzymanej z EFRROW za pomocą zamieszczenia na  stronie internetowej przedsiębiorstwa (jeżeli taka strona istnieje), krótkiego opisu operacji, zgodnie z przepisami Załącznika III do rozporządzenia wykonawczego Komisji (UE) nr 808/2014 z dnia 17 lipca 2014 r. ustanawiającego zasady stosowania rozporządzenia Parlamentu Europejskiego i Rady (UE) nr 1305/2013 w sprawie wsparcia rozwoju obszarów wiejskich przez Europejski Fundusz Rolny na rzecz Rozwoju Obszarów Wiejskich (EFRROW) (Dz. Urz. UE L 227 z 31.07.2014, str. 18, z późn. zm.) opisanymi szczegółowo w Księdze wizualizacji znaku Programu Rozwoju Obszarów Wiejskich na lata 2014-2020, opublikowanej na stronie internetowej Ministerstwa Rolnictwa i Rozwoju Wsi"]
[null,"5.",null,"Oświadczam, że inwestycje związane z realizacją operacji nie zostały sfinansowane z innych środków publicznych;"]
[null,"6.",null,"Oświadczam, że w ramach operacji zakupiłem oraz zakupię wyłącznie nowe maszyny, urządzenia oraz wyposażenie w ramach inwestycji, o których mowa w § 3 ust. 1 pkt 4 lit. a rozporządzenia Ministra Rolnictwa i Rozwoju Wsi z dnia 25 lipca 2016 r. w sprawie szczegółowych warunków i trybu przyznawania, wypłaty oraz zwrotu pomocy finansowej na operacje typu „Premie na rozpoczęcie działalności pozarolniczej” w ramach poddziałania „Pomoc na rozpoczęcie pozarolniczej działalności gospodarczej na obszarach wiejskich” objętego Programem Rozwoju Obszarów Wiejskich na lata 2014–2020  (Dz. U. z 2016 r. poz. 1196, z 2017 r. poz. 1013 oraz z 2018 r. poz. 1071);"]
[null,"7.",null,"Oświadczam, że nie podlegam wykluczeniu zgodnie z art. 35 ust. 5 oraz ust. 6 rozporządzenia delegowango Komisji (UE) nr 640/2014 z dnia 11 marca 2014 r. uzupełniające rozporządzenie Parlamentu Europejskiego i Rady (UE) nr 1306/2013 w odniesieniu do zintegrowanego systemu zarządzania i kontroli oraz warunków odmowy lub wycofania płatności oraz do kar administracyjnych mających zastosowanie do płatności bezpośrednich, wsparcia rozwoju obszarów wiejskich oraz zasady wzajemnej zgodności (Dz. Urz. UE L 181 z 20.06.2014, str. 48, z późn. zm.); \n"]
[null,"8.",null,"Oświadczam, że znane mi są regulacje dotyczące prowadzenia oddzielnego systemu rachunkowości albo korzystania z odpowiedniego kodu rachunkowego, o których mowa w art. 66 ust. 1 lit. c pkt i rozporządzenia Parlamentu Europejskiego i Rady (UE) nr 1305/2013 z dnia 17 grudnia 2013 r. w sprawie wsparcia rozwoju obszarów wiejskich przez Europejski Fundusz Rolny na rzecz Rozwoju Obszarów Wiejskich (EFRROW) i uchylającego rozporządzenie Rady (WE) nr 1698/2005 (Dz. Urz. UE L 347 z 20.12.2013, str. 487, z późn. zm.), dla wszystkich transakcji związanych z realizacją operacji, w ramach prowadzonych ksiąg rachunkowych albo przez prowadzenie zestawienia faktur lub równoważnych dokumentów księgowych na formularzu udostępnionym przez ARiMR, gdy Beneficjent nie jest zobowiązany do prowadzenia ksiąg rachunkowych na podstawie przepisów odrębnych;"]
[null,"9.",null,"Oświadczam, że umożliwię upoważnionym podmiotom przeprowadzanie kontroli wszelkich elementów związanych z realizowaną operacją, w szczególności kontroli na miejscu realizacji operacji i kontroli dokumentów, w obecności pełnomocnika, podczas wykonywania powyższych czynności;"]
[null,"10.",null,"Przyjmuję do wiadomości, iż dane Beneficjena mogą być przetwarzane przez organy audytowe i dochodzeniowe Unii Europejskiej i państw członkowskich dla zabezpieczenia interesów finansowych Unii;"]
[null,"11.",null,"Przyjmuję do wiadomości, iż dane Beneficjenta oraz kwota wypłaty pomocy z publicznych środków finansowych, w tym wypłacona kwota z tytułu udzielonej pomocy na operacje typu „Premie na rozpoczęcie działalności pozarolniczej” w ramach poddziałania „Pomoc na rozpoczęcie pozarolniczej działalności gospodarczej na obszarach wiejskich\" będzie publikowana na stronie internetowej MRiRW."]
[null,"12.",null,"Jestem świadomy obowiązku każdorazowego informowania ARiMR o wygaśnięciu decyji o przyznaniu pomocy lub uchyleniu decyzji o przyznaniu pomocy w ramach poddziałania \"Płatności na rzecz rolników kwalifikujących się do systemu dla małych gospodarstw, którzy trwale przekazali swoje gospodarstwo innemu rolnikowi\" (dotyczy wyłącznie beneficjentów tego poddziałania oraz ich małżonków)."]
[]
[null,null,"miejscowość i data",null,null,null,null,null,null,null,null,null,null,null,null,null,null,null,null,null,null,null,"czytelny podpis Beneficjenta/pełnomocnika Beneficjenta"]
[null,"VI. INFORMACJE DOTYCZĄCE PRZETWARZANIA DANYCH OSOBOWYCH"]
[null,"W związku z treścią art. 13 Rozporządzenia Parlamentu Europejskiego i Rady (UE) 2016/679 z dnia 27 kwietnia 2016 r. w sprawie ochrony osób fizycznych w związku z przetwarzaniem danych osobowych i w sprawie swobodnego przepływu takich danych oraz uchylenia dyrektywy 95/46/WE (ogólne rozporządzenie o ochronie danych) (Dz. Urz. UE L 119 z 04.05.2016 r., str. 1, ze zm.), zwanego dalej: \"Rozporządzenie RODO\", przyjmuję do wiadomości, że:"]
[null,"1.",null,"administratorem moich danych osobowych jest Agencja Restrukturyzacji i Modernizacji Rolnictwa z siedzibą w Warszawie, Al. Jana Pawła II 70, 00-175 Warszawa;"]
[null,"2.",null,"z administratorem danych osobowych mogę się kontaktować poprzez adres e-mail: info@arimr.gov.pl  lub pisemnie na adres korespondencyjny Centrali Agencji Restrukturyzacji i Modernizacji Rolnictwa, ul. Poleczki 33, 02-822 Warszawa;"]
[null,"3.",null,"administrator danych wyznaczył inspektora ochrony danych, z którym można kontaktować się w sprawach dotyczących przetwarzania danych osobowych oraz korzystania z praw związanych z przetwarzaniem danych, poprzez adres e-mail: iod@arimr.gov.pl  lub pisemnie na adres korespondencyjny administratora danych, wskazany w pkt 2; "]
[null,"4.",null,"zebrane dane osobowe będą przetwarzane przez administratora danych na podstawie art. 6 ust. 1 lit. c Rozporządzenia RODO, gdy jest to niezbędne do wypełnienia obowiązku prawnego ciążącego na administratorze danych (dane obowiązkowe) lub art. 6 ust. 1 lit. a Rozporządzenia RODO, tj. na podstawie odrębnej zgody na przetwarzanie danych osobowych, która obejmuje zakres danych szerszy, niż to wynika z powszechnie obowiązującego prawa (dane nieobowiązkowe);"]
[null,"5.",null,"zebrane dane osobowe na podstawach, o których mowa w  pkt 4, będą przetwarzane przez administratora danych w celu realizacji zadań wynikających z art. 1 pkt 1 w zw. z art. 6 ust. 2 ustawy z dnia 20 lutego 2015 r. o wspieraniu rozwoju obszarów wiejskich z udziałem środków Europejskiego Funduszu Rolnego na rzecz Rozwoju Obszarów Wiejskich w ramach Programu Rozwoju Obszarów Wiejskich na lata 2014-2020 (Dz. U. z 2018 r poz. 627), w zw. z rozporządzeniem Ministra Rolnictwa i Rozwoju Wsi z dnia 25 lipca 2016 r. w sprawie szczegółowych warunków i trybu przyznawania, wypłaty oraz zwrotu pomocy finansowej na operacje typu „Premie na rozpoczęcie działalności pozarolniczej” w ramach poddziałania „Pomoc na rozpoczęcie pozarolniczej działalności gospodarczej na obszarach wiejskich\"  objętego Programem Rozwoju Obszarów Wiejskich  na lata 2014–2020 (Dz. U. z 2016 r. poz. 1196, z 2017 r. poz. 1013 oraz z 2018 r. poz. 1071);"]
[null,"6.",null,"zebrane dane osobowe mogą być udostępniane podmiotom publicznym uprawnionym do przetwarzania danych osobowych na podstawie przepisów powszechnie obowiązującego prawa oraz podmiotom przetwarzającym dane osobowe na zlecenie administratora w związku z wykonywaniem powierzonego im zadania w drodze zawartej umowy, np. dostawcom IT;"]
[null,"7.",null,"zebrane dane osobowe na podstawie art. 6 ust. 1 lit. c Rozporządzenia RODO, będą przetwarzane:\n- od dnia ich pozyskania do dnia, w którym upłynął okres zobowiązań w związku z przyznaniem pomocy  na operację, której dotyczy ten wniosek oraz \n- od dnia upływu okresu zobowiązań w związku z przyznaną pomocą do dnia 1 stycznia roku następującego po roku, w którym upłynął okres zobowiązań w związku z przyznaniem pomocy na operację, której dotyczy ten wniosek, oraz\n- od dnia 1 stycznia roku następującego po roku, w którym upłynął okres zobowiązań w związku z przyznaniem pomocy  na operacje typu „Premie na rozpoczęcie działalności pozarolniczej” w ramach poddziałania „Pomoc na rozpoczęcie pozarolniczej działalności gospodarczej na obszarach wiejskich” objętego Programem Rozwoju Obszarów Wiejskich na lata 2014-2020 do dnia upływu 5 lat od tej daty. Okres przechowywania danych może zostać każdorazowo przedłużony o okres przedawnienia roszczeń, jeżeli przetwarzanie danych będzie niezbędne do dochodzenia roszczeń lub do obrony przed takimi roszczeniami przez administratora danych.\nPonadto, okres przechowywania danych może zostać przedłużony na okres potrzebny do przeprowadzenia archiwizacji;"]
[null,"8.",null,"dane osobowe zebrane na podstawie art. 6 ust. 1 lit. a Rozporządzenia RODO, tj. na podstawie odrębnej zgody na przetwarzanie danych osobowych, będą przetwarzane:\n- od dnia ich pozyskania do dnia, w którym upłynął okres zobowiązań w związku z przyznaniem pomocy  na operację, której dotyczy ten wniosek oraz \n- od dnia upływu okresu zobowiązań w związku  z przyznaną pomocą do dnia 1 stycznia roku następującego po roku, w którym upłynął okres zobowiązań w związku z przyznaniem pomocy na operację, której dotyczy ten wniosek, oraz\n- od dnia 1 stycznia roku następującego po roku, w którym upłynął okres zobowiązań w związku z przyznaniem pomocy  na operacje typu „Premie na rozpoczęcie działalności pozarolniczej” w ramach poddziałania „Pomoc na rozpoczęcie pozarolniczej działalności gospodarczej na obszarach wiejskich” objętego Programem Rozwoju Obszarów Wiejskich na lata 2014-2020 do dnia upływu 5 lat od tej daty, lub do czasu jej odwołania;"]
[null,"9.",null,"przysługuje mi prawo dostępu do moich danych, prawo żądania ich sprostowania, usunięcia lub ograniczenia ich przetwarzania, w przypadkach określonych w Rozporządzeniu RODO;"]
[null,"10.",null,"w przypadkach, w których przetwarzanie moich danych osobowych odbywa się na podstawie art. 6 ust. 1 lit. a Rozporządzenia RODO, tj. na podstawie odrębnej zgody na przetwarzanie danych osobowych, przysługuje mi prawo do odwołania tej zgody lub zmiany  w dowolnym momencie, bez wpływu na zgodność z prawem przetwarzania, którego dokonano na podstawie zgody przed jej odwołaniem;"]
[null,"11.",null,"w przypadku uznania, że przetwarzanie danych osobowych narusza przepisy Rozporządzenia RODO, przysługuje mi prawo wniesienia skargi do Prezesa Urzędu Ochrony Danych Osobowych;"]
[null,"12.",null,"podanie danych osobowych na podstawie art. 6 ust. 1 lit. c Rozporządzenia RODO we wniosku o płatność  na operacje typu „Premie na rozpoczęcie działalności pozarolniczej” w ramach poddziałania „Pomoc na rozpoczęcie pozarolniczej działalności gospodarczej na obszarach wiejskich\"  wynika z obowiązku zawartego w przepisach powszechnie obowiązujących, a konsekwencją niepodania tych danych osobowych może być np. pozostawienie wniosku bez rozpoznania."]
[]
[]
[null,null,"miejscowość i data",null,null,null,null,null,null,null,null,null,null,null,null,null,null,null,null,null,null,null,"czytelny podpis Beneficjenta/pełnomocnika Beneficjenta"]
[]
[null,null,"miejscowość i data",null,null,null,null,null,null,null,null,null,null,null,null,null,null,null,null,null,null,null,"czytelny podpis małżonka Beneficjenta"]
[]
[]
[null,"VII. ",null,"ZGODA BENEFICJENTA NA PRZETWARZANIE DANYCH OSOBOWYCH  (aby wyrazić zgodę należy wybrać z listy rozwijanej X)",null,null,null,null,null,null,null,null,null,null,null,null,null,null,null,null,null,null,null,null,null,null,null,null,null,null,null,null,null,null,null,null,null,null,null,null,null,null,null,null,null,null,"x"]
[null,"x",null,"Wyrażam zgodę na przetwarzanie przez Agencję Restrukturyzacji i Modernizacji Rolnictwa z siedzibą w Warszawie, Al. Jana Pawła II 70, 00-175 Warszawa (adres do korespondencji: ul. Poleczki 33, 02-822 Warszawa), jako administratora danych, moich danych osobowych podanych w zakresie szerszym, niż jest to wymagane na podstawie przepisów prawa wskazanych w pkt 5 sekcji VI, oznaczonych w niniejszym formularzu „Wniosku o płatność” jako „dane nieobowiązkowe”, w celu ułatwienia i przyśpieszenia kontaktu ze mną, w sprawach dotyczących złożonego wniosku."]
[]
[null,"x",null,"Wyrażam zgodę na przetwarzanie przez Agencję Restrukturyzacji i Modernizacji Rolnictwa z siedzibą w Warszawie, Al. Jana Pawła II nr 70, 00-175 Warszawa (adres do korespondencji: ul. Poleczki 33, 02-822 Warszawa), jako administratora danych, moich danych osobowych  oznaczonych w niniejszym formularzu   „Wniosku o płatność\" jako „dane nieobowiązkowe”,  w celu otrzymywania/kierowania do mnie treści informacyjnych lub promocyjnych o działaniach realizowanych przez Agencję, za pośrednictwem SMS/MMS na podany przeze mnie numer telefonu."]
[]
[null,null,null,"Podanie danych oznaczonych jako nieobowiązkowe jest dobrowolne dla każdej z powyższych zgód, a ich niepodanie nie wpływa na proces przyjęcia i rozpatrzenia „Wniosku o płatność”. Niepodanie tych danych uniemożliwi jedynie realizację celów wskazanych w treści poszczególnych zgód. Każdą z powyższych zgód można wycofać w dowolnym momencie, poprzez przesłanie „oświadczenia o wycofaniu zgody” na adres korespondencyjny Administratora danych z dopiskiem „Ochrona danych osobowych” lub na adres poczty elektronicznej (info@arimr.gov.pl, iod@arimr.gov.pl). Wycofanie zgody nie wpływa na zgodność z prawem przetwarzania, którego dokonano na podstawie zgody przed jej wycofaniem."]
[]
[]
[null,null,"miejscowość i data",null,null,null,null,null,null,null,null,null,null,null,null,null,null,null,null,null,null,null,"czytelny podpis Beneficjenta/pełnomocnika Beneficjenta\n"]
[]
[]
[null,"VIII. ",null,"ZGODA MAŁŻONKA BENEFICJENTA NA PRZETWARZANIE DANYCH OSOBOWYCH  (aby wyrazić zgodę należy wybrać z listy rozwijanej X)"]
[null,"x",null,"Wyrażam zgodę na przetwarzanie przez Agencję Restrukturyzacji i Modernizacji Rolnictwa z siedzibą w Warszawie, Al. Jana Pawła II 70, 00-175 Warszawa (adres do korespondencji: ul. Poleczki 33, 02-822 Warszawa), jako administratora danych, moich danych osobowych podanych w zakresie szerszym, niż jest to wymagane na podstawie przepisów prawa wskazanych w pkt 5 sekcji VI, oznaczonych w niniejszym formularzu „Wniosku o płatność” jako „dane nieobowiązkowe”, w celu ułatwienia i przyśpieszenia kontaktu ze mną, w sprawach dotyczących złożonego wniosku."]
[]
[]
[null,null,null,"Podanie danych oznaczonych jako nieobowiązkowe jest dobrowolne dla powyższej zgody, a ich niepodanie nie wpływa na proces przyjęcia i rozpatrzenia „Wniosku o płatność”. Niepodanie tych danych uniemożliwi jedynie realizację celów wskazanych w treści zgody. Powyższą zgodę można wycofać w dowolnym momencie, poprzez przesłanie „oświadczenia o wycofaniu zgody” na adres korespondencyjny Administratora danych z dopiskiem „Ochrona danych osobowych” lub na adres poczty elektronicznej (info@arimr.gov.pl, iod@arimr.gov.pl). Wycofanie zgody nie wpływa na zgodność z prawem przetwarzania, którego dokonano na podstawie zgody przed jej wycofaniem."]
[]
[]
[null,null,null,"miejscowość i data",null,null,null,null,null,null,null,null,null,null,null,null,null,null,null,null,null,null,null,"czytelny podpis małżonka Beneficjenta\n"]
[]
[null,"IX. ",null,"OŚWIADCZENIE BENEFICJENTA w zakresie wypełnienia obowiązków informacyjnych przewidzianych w art. 13 lub art. 14 Rozporządzenia RODO"]
[null,null,null,"Oświadczam, że wypełniłem obowiązki informacyjne przewidziane w art. 13 lub art. 14 RODO¹ wobec osób fizycznych², od których dane osobowe bezpośrednio lub pośrednio pozyskałem w celu realizacji Wniosku o płatność na operacje typu „Premie na rozpoczęcie działalności pozarolniczej” w ramach poddziałania 6.2 „Pomoc na rozpoczęcie pozarolniczej działalności gospodarczej na obszarach wiejskich” objętego Programem Rozwoju Obszarów Wiejskich na lata 2014-2020³.\n"]
[]
[null,null,null,"miejscowość i data",null,null,null,null,null,null,null,null,null,null,null,null,null,null,null,null,null,null,null,"czytelny podpis Beneficjenta/pełnomocnika Beneficjenta"]
[null,null,null,"¹Rozporządzenie Parlamentu Europejskiego i Rady (UE) 2016/679 z dnia 27 kwietnia 2016 r. w sprawie ochrony osób fizycznych w związku z przetwarzaniem danych osobowych i w sprawie swobodnego przepływu takich danych oraz uchylenia dyrektywy 95/46/WE (ogólne rozporządzenie o ochronie danych) (Dz. Urz. UE L 119 z 04.05.2016 r., str. 1, ze zm.)."]
[null,null,null,"²Dotyczy takich przypadków jak pozyskiwanie od Beneficjenta danych osobowych innych osób, np. danych z umów o pracę (dla etatów powstałych w wyniku realizacji operacji), które to dane służą do wykazania spełniania przez Beneficjenta warunków ubiegania się o przyznanie pomocy/płatności."]
[]
[null,null,null,"³W przypadku, gdy Beneficjent nie przekazuje danych osobowych innych niż bezpośrednio jego dotyczących lub zachodzi wyłączenie stosowania obowiązku informacyjnego, stosownie do art. 13 ust. 4 lub art. 14 ust. 5 RODO treści oświadczenia Beneficjent nie składa."]

{"sheet":"Zał 1a Sprawozdanie  BP","index":10,"n_rows":112,"n_cols":46,"rows_kept":112,"cut":false,"hidden":false,"merged":[[31,4,31,13],[31,2,31,3],[31,14,31,19],[31,20,31,35],[21,2,21,21],[24,2,24,21],[26,2,26,21],[21,23,21,32],[28,2,28,35],[36,27,36,33],[34,2,34,35],[21,34,21,35],[30,4,30,13],[24,28,24,35],[29,4,29,13],[19,2,19,11],[19,13,19,35],[81,2,82,14],[81,25,82,36],[30,2,30,3],[71,31,71,36],[26,28,26,35],[29,2,29,3],[29,14,29,19],[29,20,29,35],[70,15,70,17],[70,18,70,19],[73,4,73,14],[73,15,73,17],[73,18,73,19],[73,25,73,30],[64,15,64,17],[64,18,64,19],[83,25,85,36],[83,2,85,14],[90,46,90,47],[55,2,55,36],[72,2,72,36],[73,2,76,3],[73,20,76,24],[75,4,75,14],[76,4,76,14],[83,38,83,39],[87,46,87,47],[88,46,88,47],[89,46,89,47],[78,2,78,24],[78,25,78,30],[78,31,78,36],[79,46,79,47],[81,42,81,43],[82,42,82,43],[77,2,77,24],[77,25,77,30],[77,31,77,36],[74,18,74,19],[74,25,74,30],[64,20,64,22],[64,23,64,24],[64,25,64,30],[68,4,68,14],[68,15,68,17],[37,27,37,33],[64,31,64,36],[65,4,65,14],[65,15,65,17],[65,18,65,19],[65,20,65,22],[64,4,64,14],[59,20,59,22],[58,4,58,14],[58,15,58,17],[58,18,58,19],[58,20,58,22],[58,23,58,24],[58,25,58,30],[60,31,60,36],[59,23,59,24],[59,25,59,30],[59,31,59,36],[57,25,57,30],[70,25,70,30],[70,31,70,36],[67,15,67,17],[67,18,67,19],[67,20,70,24],[67,25,67,30],[67,31,67,36],[65,31,65,36],[38,27,38,33],[63,23,63,24],[63,25,63,30],[63,31,63,36],[65,23,65,24],[65,25,65,30],[56,2,56,36],[57,2,60,3],[57,4,57,14],[57,15,57,17],[57,18,57,19],[57,20,57,22],[57,23,57,24],[59,4,59,14],[59,15,59,17],[59,18,59,19],[74,4,74,14],[74,15,74,17],[69,15,69,17],[68,31,68,36],[60,4,60,14],[75,31,75,36],[69,18,69,19],[69,25,69,30],[69,31,69,36],[73,31,73,36],[70,4,70,14],[71,20,71,24],[69,4,69,14],[71,2,71,14],[71,15,71,17],[71,18,71,19],[71,25,71,30],[68,18,68,19],[66,2,66,36],[67,2,70,3],[67,4,67,14],[68,25,68,30],[63,18,63,19],[63,20,63,22],[76,31,76,36],[76,15,76,17],[76,18,76,19],[76,25,76,30],[74,31,74,36],[75,15,75,17],[75,18,75,19],[75,25,75,30],[60,15,60,17],[60,18,60,19],[60,20,60,22],[60,23,60,24],[60,25,60,30],[61,2,61,36],[62,2,65,3],[62,4,62,14],[62,15,62,17],[62,18,62,19],[62,20,62,22],[62,23,62,24],[62,25,62,30],[62,31,62,36],[63,4,63,14],[63,15,63,17],[57,31,57,36],[58,31,58,36],[51,2,51,35],[53,2,53,14],[53,15,53,19],[53,20,53,24],[53,25,53,30],[53,31,53,36],[54,2,54,14],[54,15,54,19],[54,20,54,24],[54,25,54,30],[54,31,54,36],[1,2,1,29],[1,30,1,35],[2,2,2,35],[4,16,4,30],[6,16,6,30],[8,16,8,30],[14,26,14,32],[14,34,14,35],[10,16,10,30],[12,2,12,35],[17,26,17,32],[14,2,14,24],[16,2,16,24],[16,26,16,32],[30,14,30,19],[30,20,30,35],[45,31,45,33],[45,27,45,29],[49,3,49,25],[49,27,49,33],[40,27,40,33],[42,31,42,33],[42,27,42,29],[44,27,44,29],[44,31,44,33],[43,27,43,29],[43,31,43,33],[47,27,47,33],[36,2,36,25],[40,2,40,25],[42,2,42,25],[44,2,44,25],[47,2,47,25],[32,2,32,3]]}
[null,null,null,null,null,null,null,null,null,null,null,null,null,null,null,null,null,null,null,null,null,null,null,null,null,null,null,null,null,null,null,null,null,null,null,null,null,null,null,null,null,null,null,null,"(wybierz z listy)","(wybierz z listy)"]
[null,null,"Załącznik nr 1a do wniosku o płatność - pozycja 1 części IV.2 załaczników",null,null,null,null,null,null,null,null,null,null,null,null,null,null,null,null,null,null,null,null,null,null,null,null,null,null,null,null,null,null,null,null,null,null,null,null,null,null,null,null,null,"produktowa","TAK"]
[null,null,"Sprawozdanie z realizacji Biznesplanu - dla operacji typu „Premie na rozpoczęcie działalności pozarolniczej” w ramach poddziałania „Pomoc na rozpoczęcie pozarolniczej działalności gospodarczej na obszarach wiejskich” cz.1",null,null,null,null,null,null,null,null,null,null,null,null,null,null,null,null,null,null,null,null,null,null,null,null,null,null,null,null,null,null,null,null,null,null,null,null,null,null,null,null,null,"procesowa","NIE"]
[null,null,null,null,null,null,null,null,null,null,null,null,null,null,null,null,null,null,null,null,null,null,null,null,null,null,null,null,null,null,null,null,null,null,null,null,null,null,null,null,null,null,null,null,"marketingowa"]
[null,null,"Nazwisko/Nazwa Beneficjenta",null,null,null,null,null,null,null,null,null,null,null,null,null,null,null,null,null,null,null,null,null,null,null,null,null,null,null,null,null,null,null,null,null,null,null,null,null,null,null,null,null,"organizacyjna"]
[]
[null,null,"Imię/Imiona"]
[]
[null,null,"Adres"]
[]
[null,null,"Numer decyzji ARiMR"]
[]
[null,null,"I. Cele dotyczące operacji"]
[]
[null,"1.","Utworzono i utrzymano przedsiębiorstwo",null,null,null,null,null,null,null,null,null,null,null,null,null,null,null,null,null,null,null,null,null,null,null,"(wybierz z listy)"]
[]
[null,"1.a","Data rozpoczęcia prowadzenia działalności gospodarczej"]
[null,null,null,null,null,null,null,null,null,null,null,null,null,null,null,null,null,null,null,null,null,null,null,null,null,null,"(rrrr-mm-dd)"]
[]
[null,"2.","Inne cele (należy wypełnić o ile zostały określone w Biznesplanie)"]
[]
[null,"3.","Liczba utworzonych i utrzymanych miejsc pracy w przeliczeniu na pełne etaty",null,null,null,null,null,null,null,null,null,null,null,null,null,null,null,null,null,null,null,null,null,null,null,null,null,null,null,null,null,null,","]
[]
[]
[null,"4.","Czy w Biznesplanie zawarto cel innowacyjność",null,null,null,null,null,null,null,null,null,null,null,null,null,null,null,null,null,null,null,null,null,null,null,null,null,"(wybierz z listy)"]
[]
[null,"5.","Czy zrealizowano cel innowacyjność (wybrać o ile w pkt. 4 zaznaczono TAK)",null,null,null,null,null,null,null,null,null,null,null,null,null,null,null,null,null,null,null,null,null,null,null,null,null,"(wybierz z listy)"]
[]
[null,null,"Jeżeli w punkcie 4 zaznaczono TAK należy uzupełnić"]
[null,null,"L.p.",null,"Nazwa zadania",null,null,null,null,null,null,null,null,null,"rodzaj innowacji",null,null,null,null,null,"uzasadnienie"]
[null,null,{"$f":"ROW(C1)","v":1},null,null,null,null,null,null,null,null,null,null,null,"(wybierz z listy)"]
[null,null,null,null,null,null,null,null,null,null,null,null,null,null,"(wybierz z listy)"]
[null,null,{"$f":"ROW(C4)","v":4}]
[]
[null,null,"II. Dane ogólne operacji"]
[]
[null,"1.","Zrealizowany zakres operacji - kod PKD"]
[]
[]
[]
[null,"2.","Samozatrudnienie",null,null,null,null,null,null,null,null,null,null,null,null,null,null,null,null,null,null,null,null,null,null,null,null,"(wybierz z listy)"]
[]
[null,"3.","Przeciętne zatrudnienie pracowników najemnych - liczba osób"]
[null,null,null,null,null,null,null,null,null,null,null,null,null,null,null,null,null,null,null,null,null,null,null,null,null,null,null,"kobiety",null,null,null,"mężczyźni"]
[null,"4.","Przeciętne zatrudnienie pracowników najemnych - liczba etatów"]
[null,null,null,null,null,null,null,null,null,null,null,null,null,null,null,null,null,null,null,null,null,null,null,null,null,null,null,"kobiety",null,null,null,"mężczyźni'"]
[]
[null,"5.","Wartość dodana brutto ze wspieranej działalności pozarolniczej w zł."]
[]
[]
[]
[null,null,"III. Realizacja zakresu okreslonego w harmonogramie"]
[]
[null,null,"Nazwa wskaźnika",null,null,null,null,null,null,null,null,null,null,null,null,"Ilość ",null,null,null,null,"Powierzchnia/\nObjętość",null,null,null,null,"Całkowite Koszty operacji",null,null,null,null,null,"Koszty operacji"]
[null,null,1,null,null,null,null,null,null,null,null,null,null,null,null,2,null,null,null,null,3,null,null,null,null,4,null,null,null,null,null,5]
[null,null,"1. Zrealizowane inwestycje w środki trwałe"]
[null,null,"1.1. Powierzchnia wybudowanych budynków/budowli"]
[null,null,"w tym:",null,"produkcyjnych",null,null,null,null,null,null,null,null,null,null,null,null,null,"szt",null,null,null,null,"m2"]
[null,null,null,null,"usługowych",null,null,null,null,null,null,null,null,null,null,null,null,null,"szt",null,null,null,null,"m2"]
[null,null,null,null,"handlowych",null,null,null,null,null,null,null,null,null,null,null,null,null,"szt",null,null,null,null,"m2"]
[null,null,null,null,"pozostałych",null,null,null,null,null,null,null,null,null,null,null,null,null,"szt",null,null,null,null,"m2"]
[null,null,"1.2. Powierzchnia zmodernizowanych budynków/budowli"]
[null,null,"w tym:",null,"produkcyjnych",null,null,null,null,null,null,null,null,null,null,null,null,null,"szt",null,null,null,null,"m2"]
[null,null,null,null,"usługowych",null,null,null,null,null,null,null,null,null,null,null,null,null,"szt",null,null,null,null,"m2"]
[null,null,null,null,"handlowych",null,null,null,null,null,null,null,null,null,null,null,null,null,"szt",null,null,null,null,"m2"]
[null,null,null,null,"pozostałych",null,null,null,null,null,null,null,null,null,null,null,null,null,"szt",null,null,null,null,"m2"]
[null,null,"1.3. Liczba zakupionego sprzętu ruchomego"]
[null,null,"w tym:",null,"pojazdy",null,null,null,null,null,null,null,null,null,null,null,null,null,"szt"]
[null,null,null,null,"maszyny i urządzenia  ",null,null,null,null,null,null,null,null,null,null,null,null,null,"szt"]
[null,null,null,null,"elementy wyposażenia, elementy maszyn, narzędzi, wyposażenie dodatkowe",null,null,null,null,null,null,null,null,null,null,null,null,null,"szt"]
[null,null,null,null,"pozostałe",null,null,null,null,null,null,null,null,null,null,null,null,null,"szt"]
[null,null,"1.4. Sprzęt komputerowy",null,null,null,null,null,null,null,null,null,null,null,null,null,null,null,"szt"]
[null,null,"2. Zrealizowane inwestycje w inne środki związane z pozarolniczą działalnością gospodarczą (np. środki obrotowe) oraz pozostałe działania (szkolenia, usługi doradcze, inne przedsięwzięcia wymagane do rozwoju działalności)",null,null,null,null,null,null,null,null,null,null,null,null,null,null,null,"szt"]
[null,null,"w tym:",null,"koszty na środki obrotowe",null,null,null,null,null,null,null,null,null,null,null,null,null,"szt"]
[null,null,null,null," koszty szkoleń",null,null,null,null,null,null,null,null,null,null,null,null,null,"szt"]
[null,null,null,null,"koszty usług  doradczych",null,null,null,null,null,null,null,null,null,null,null,null,null,"szt"]
[null,null,null,null," koszty innych przedsięwzięć wymaganych do rozwoju działalności",null,null,null,null,null,null,null,null,null,null,null,null,null,"szt"]
[null,null,"3. Koszty towarzyszące (niefinansowane w ramach premii)"]
[null,null,"4. Suma kosztów",null,null,null,null,null,null,null,null,null,null,null,null,null,null,null,null,null,null,null,null,null,null,{"$f":"SUM(Z58:AE61,Z63:AE66,Z68:AE72,Z74:AE78)","v":0},null,null,null,null,null,{"$f":"SUM(AF58:AK61,AF63:AK66,AF68:AK72,AF74:AK78)","v":0}]
[]
[]
[]
[]
[null,null,"miejscowaść i data",null,null,null,null,null,null,null,null,null,null,null,null,null,null,null,null,null,null,null,null,null,null,"czytelny podpis Beneficjenta/pełnomocnika Beneficjenta"]
[]
[]
[]
[]
[]
[]
[]
[]
[]
[]
[]
[]
[]
[]
[]
[]
[]
[]
[]
[]
[]
[]
[]
[]
[]
[null,null,null,null,null,null,null,null,null,null,null,null,null,null,null,null,null,null,null,null,null,null,null,null,null,null,null,null,null,null,null,null,null,null,null,null,null,null,null,"wybierz"]
[null,null,null,null,null,null,null,null,null,null,null,null,null,null,null,null,null,null,null,null,null,null,null,null,null,null,null,null,null,null,null,null,null,null,null,null,null,null,null,"TAK"]
[null,null,null,null,null,null,null,null,null,null,null,null,null,null,null,null,null,null,null,null,null,null,null,null,null,null,null,null,null,null,null,null,null,null,null,null,null,null,null,"NIE"]

{"sheet":"Zał 1b Sprawozdanie BP ","index":11,"n_rows":49,"n_cols":26,"rows_kept":49,"cut":false,"hidden":false,"merged":[[30,2,30,3],[29,2,29,3],[28,2,28,3],[5,3,6,3],[9,3,9,11],[17,3,17,11],[15,3,15,7],[23,3,23,7],[25,3,25,11],[13,2,13,3],[10,2,10,3],[11,2,11,3],[12,2,12,3],[27,2,27,3],[14,2,14,3],[18,2,18,3],[1,1,1,9],[3,1,3,11],[4,1,4,11],[5,4,6,4],[5,5,5,7],[5,8,5,9],[5,10,5,11],[19,2,19,3],[20,2,20,3],[21,2,21,3],[22,2,22,3],[26,2,26,3],[31,3,31,7],[35,3,35,9],[33,3,33,7],[36,2,36,3],[37,2,37,3],[43,10,44,12],[45,8,45,11],[46,2,46,9],[38,2,38,3],[39,2,39,3],[40,2,40,3],[45,1,45,3],[43,1,44,3],[41,3,41,7]]}
[]
[null,"Załącznik nr 1b do wniosku o płatność - pozycja 2 części IV.2 załaczników"]
[null,null,null,null,null,null,null,null,null,null,null,null,null,null,null,null,null,null,null,null,null,null,null,null,null,"tak"]
[null,"Sprawozdanie z realizacji Biznesplanu - dla operacji typu „Premie na rozpoczęcie działalności pozarolniczej” \nw ramach poddziałania „Pomoc na rozpoczęcie pozarolniczej działalności gospodarczej na obszarach wiejskich” cz. 2",null,null,null,null,null,null,null,null,null,null,null,null,null,null,null,null,null,null,null,null,null,null,null,"nie"]
[null," HARMONOGRAM RZECZOWO - FINANSOWY Z REALIZACJI OPERACJI "]
[null,"Lp","Wyszczególnienie zakresu rzeczowego dla operacji \n(zgodnie z pozycjami zawartymi w biznesplanie)","Wyszczególnienie zakresu rzeczowego dla operacji \n(zgodnie z pozycjami zawartymi w biznesplanie)","Zgodność zrealizowanego zakresu rzeczowego z Biznesplanem                                                                        (TAK/NIE)","Mierniki rzeczowe",null,null,"Mierniki finansowe",null,"Dokumentowanie",null,null,null,null,null,null,null,"wybierz"]
[null,null,null,null,null,"jednostka miary","ilość wg decyzji","ilość wg \nrozliczenia"," wg decyzji","wg rozliczenia","Nr/Nazwa\ndokumentu1","nr ewidencyjny dokumentu2",null,null,null,null,null,null,1]
[null,null,null,1,2,3,4,5,6,7,8,9,null,null,null,null,null,null,2]
[null,null,null,null,null,null,null,null,null,null,null,null,null,null,null,"WYBIERZ","(wybierz z listy)",null,3]
[null,"I","KOSZTY ŚRODKÓW TRWAŁYCH","KOSZTY ŚRODKÓW TRWAŁYCH",null,null,null,null,null,null,null,null,null,null,null,null,"TAK",null,4]
[null,1,null,null,"(wybierz z listy)",null,null,null,null,null,null,null,null,null,null,null,"NIE ",null,5]
[null,2,null,null,"(wybierz z listy)",null,null,null,null,null,null,null,null,null,null,null,null,null,6]
[null,3,null,null,"(wybierz z listy)",null,null,null,null,null,null,null,null,null,null,null,null,null,7]
[null,4,null,null,"(wybierz z listy)",null,null,null,null,null,null,null,null,null,null,null,null,null,8]
[null,"…",null,null,"(wybierz z listy)",null,null,null,null,null,null,null,null,null,null,null,null,null,9]
[null,null,"SUMA I","SUMA I",null,null,null,null,{"$f":"SUM(I11:I15)","v":0},{"$f":"SUM(J11:J15)","v":0},null,null,null,null,null,null,null,null,10]
[]
[null,"II","KOSZTY INNYCH ŚRODKÓW ZWIĄZANYCH Z POZAROLNICZĄ DZIAŁALNOŚCIĄ GOSPODARCZĄ","KOSZTY INNYCH ŚRODKÓW ZWIĄZANYCH Z POZAROLNICZĄ DZIAŁALNOŚCIĄ GOSPODARCZĄ"]
[null,1,null,null,"(wybierz z listy)"]
[null,2,null,null,"(wybierz z listy)"]
[null,3,null,null,"(wybierz z listy)"]
[null,4,null,null,"(wybierz z listy)"]
[null,"…",null,null,"(wybierz z listy)"]
[null,null,"SUMA II","SUMA II",null,null,null,null,{"$f":"SUM(I19:I23)","v":0},{"$f":"SUM(J19:J23)","v":0}]
[]
[null,"III","KOSZTY SZKOLEŃ, USŁUG  DORADCZYCH, LUB INNYCH PRZEDSIĘWZIĘĆ WYMAGANYCH DO ROZWOJU POZAROLNICZEJ DZIAŁALNOŚCI GOSPODARCZEJ","KOSZTY SZKOLEŃ, USŁUG  DORADCZYCH, LUB INNYCH PRZEDSIĘWZIĘĆ WYMAGANYCH DO ROZWOJU POZAROLNICZEJ DZIAŁALNOŚCI GOSPODARCZEJ"]
[null,1,null,null,"(wybierz z listy)"]
[null,2,null,null,"(wybierz z listy)"]
[null,3,null,null,"(wybierz z listy)"]
[null,4,null,null,"(wybierz z listy)"]
[null,"…",null,null,"(wybierz z listy)"]
[null,null,"SUMA III","SUMA III",null,null,null,null,{"$f":"SUM(I27:I31)","v":0},{"$f":"SUM(J27:J31)","v":0}]
[]
[null,null,"SUMA I+II+III","SUMA I+II+III",null,null,null,null,{"$f":"I16+I24+I32","v":0},{"$f":"J16+J24+J32","v":0}]
[]
[null,"IV","KOSZTY TOWARZYSZĄCE (niefinansowane w ramach premii)","KOSZTY TOWARZYSZĄCE (niefinansowane w ramach premii)"]
[null,1,null,null,"(wybierz z listy)"]
[null,2,null,null,"(wybierz z listy)"]
[null,3,null,null,"(wybierz z listy)"]
[null,4,null,null,"(wybierz z listy)"]
[null,"…",null,null,"(wybierz z listy)"]
[null,null,"SUMA IV","SUMA IV",null,null,null,null,{"$f":"SUM(I37:I41)","v":0},{"$f":"SUM(J37:J41)","v":0}]
[]
[]
[]
[null,"miejscowość i data ",null,null,null,null,null,null,"czytelny podpis Beneficjenta/pełnomocnika Beneficjenta"]
[]
[null,1,"Do wniosku o płatność w zakresie wypłaty drugiej raty pomocy, należy dołaczyć dokumenty potwierdzające zrealizowanie zakresu operacji (patrz część IV.2 Załączniki do wniosku o płatność drugiej raty pomocy - pozycja 4a).","Do wniosku o płatność w zakresie wypłaty drugiej raty pomocy, należy dołaczyć dokumenty potwierdzające zrealizowanie zakresu operacji (patrz część IV.2 Załączniki do wniosku o płatność drugiej raty pomocy - pozycja 4a)."]
[null,2,"Należy wpisać nr ewidencyjny w związku z obowiązkiem opisanym we wniosku o płatność częśc V. OŚWIADCZENIE BENEFICJENTA pkt. 8.","Należy wpisać nr ewidencyjny w związku z obowiązkiem opisanym we wniosku o płatność częśc V. OŚWIADCZENIE BENEFICJENTA pkt. 8."]

{"sheet":"Zał 1c Sprawozdanie BP","index":12,"n_rows":29,"n_cols":13,"rows_kept":29,"cut":false,"hidden":false,"merged":[[23,2,23,10],[25,2,26,4],[25,10,26,12],[27,2,27,4],[27,10,27,12],[1,2,1,8],[5,2,8,12],[10,2,11,2],[10,3,11,3],[10,9,11,9],[2,3,2,7],[2,9,2,10],[3,2,3,12],[10,4,11,4],[10,5,11,5],[10,6,11,6],[10,7,11,7],[10,8,11,8],[10,11,11,11],[10,12,11,12],[10,10,11,10]]}
[]
[null,null,"Załącznik nr 1c do wniosku o płatność - pozycja 3 części IV.2 załaczników"]
[]
[null,null,"Sprawozdanie z realizacji Biznesplanu - dla operacji typu „Premie na rozpoczęcie działalności pozarolniczej” \nw ramach poddziałania „Pomoc na rozpoczęcie pozarolniczej działalności gospodarczej na obszarach wiejskich” cz. 3"]
[]
[null,null,"Informacje dotyczące parametrów zakupionych maszyn/urządzeń                                                 "]
[]
[]
[]
[]
[null,null," Nr pozycji z harmonogramu rzeczowo-finansowego operacji ","Nr/Nazwa dokumentu","Nazwa towaru","Nazwa producenta","Nazwa i NIP dostawcy","Rok produkcji","Model","Numer seryjny ","Parametry                                                       (np. moc, szerokość, długość, ładowność, pojemność, ilość osi i inne**)","Cena netto w zł","Cena brutto w zł"]
[]
[null,null,1,2,3,4,5,6,7,8,9,10,11]
[]
[]
[]
[]
[]
[]
[]
[]
[]
[]
[]
[]
[]
[]
[null,null,"miejscowość i data ",null,null,null,null,null,null,null,"czytelny podpis Beneficjenta/pełnomocnika Beneficjenta"]
[null,null,"** Wpisać właściwy parametr dla zakupionej maszyny."]

{"sheet":"Arkusz3","index":13,"n_rows":0,"n_cols":0,"rows_kept":0,"cut":false,"hidden":true,"merged":[]}

{"sheet":"lista","index":14,"n_rows":216,"n_cols":2,"rows_kept":216,"cut":false,"hidden":true,"merged":[]}
["(wybierz z listy)"]
["złożenie wniosku o przyznanie pomocy "]
["zmiana złożonego wniosku o przyznanie pomocy "]
["korekta złożonego wniosku o przyznanie pomocy  "]
["wycofanie złożonego wniosku o przyznanie pomocy  "]
["złożenie wniosku następcy prawnego o przyznanie pomocy"]
["zmiana złożonego wniosku następcy prawnego o przyznanie pomocy"]
["korekta złożonego wniosku następcy prawnego o przyznanie pomocy"]
["wycofanie złożonego wniosku następcy prawnego o przyznanie pomocy"]
[]
["(wybierz z listy)"]
["ROLNIK"]
["MAŁŻONEK ROLNIKA"]
["DOMOWNIK ROLNIKA"]
["MAŁŻONEK BENEFICJENTA poddziałania \"Płatności na rzecz rolników kwalifikujących się do systemu dla małych gospodarstw, którzy trwale przekazali swoje gospodarstwo innemu rolnikowi\" "]
["BENEFICJENT poddziałania \"Płatności na rzecz rolników kwalifikujących się do systemu dla małych gospodarstw, którzy trwale przekazali swoje gospodarstwo innemu rolnikowi\" "]
[]
[]
["(wybierz z listy)","http://stat.gov.pl/sprawozdawczosc/intrastat/wykaz-panstw-czlonkowskich-unii-europejskiej/"]
["AT - Austria","austriackie"]
["BE - Belgia","belgijskie"]
["GB - Wielka Brytania","brytyjskie"]
["BG - Bułgaria","bułgarskie"]
["HR - Chorwacja","chorwackie"]
["CY - Cypr","cypryjskie"]
["CZ - Czechy","czeskie"]
["DK - Dania","duńskie"]
["EE - Estonia","estońskie"]
["FI - Finlandia ","fińskie"]
["FR - Francja","francuskie"]
["GR - Grecja","greckie"]
["ES - Hiszpania","hiszpańskie"]
["NL - Holandia","holenderskie"]
["IE - Irlandia","irlandzkie"]
["LT - Litwa","litewskie"]
["LU - Luksmeburg","luksemburskie"]
["LV - Łotwa","łotewskie"]
["MT - Malta","maltańskie"]
["DE - Niemcy","niemieckie"]
["PL - Polska ","polskie"]
["PT - Portugalia","portugalskie"]
["RO - Rumunia","rumuńskie"]
["SK - Słowacja","słowackie"]
["SI - Słowenia","słoweńskie"]
["SE - Szwecja ","szwedzkie"]
["HU - Węgry","węgierskie"]
["IT - Włochy","włoskie"]
[]
["(wybierz z listy)"]
["KOBIETA "]
["MĘŻCZYZNA "]
[]
["(wybierz z listy)"]
["DOLNOŚLĄSKIE"]
["KUJAWSKO-POMORSKIE"]
["LUBELSKIE"]
["LUBUSKIE"]
["ŁÓDZKIE"]
["OPOLSKIE "]
["PODLASKIE"]
["PODKARPACKIE"]
["POMORSKIE"]
["MAŁOPOLSKIE"]
["MAZOWIECKIE"]
["ŚLĄSKIE"]
["ŚWIĘTOKRZYSKIE"]
["WARMIŃSKO-MAZURSKIE"]
["WIELKOPOLSKIE"]
["ZACHODNIOPOMORSKIE"]
[]
["(wybierz z listy)"]
["TAK"]
["NIE"]
[]
["(wybierz z listy)"]
["liczba nowych usług"]
["liczba technologii, z wykorzystaniem nowych maszyn i urządzeń"]
[]
["(wybierz z listy)"]
["liczba zmienionych technologii"]
["liczba sprzętu"]
["liczba maszyn i urządzeń"]
[]
[]
["(wybierz z listy)"]
["01.61.Z Działalność usługowa wspomagająca produkcję roślinną "]
["01.62.Z Działalność usługowa wspomagająca chów i hodowlę zwierząt gospodarskich "]
["01.63.Z Działalność usługowa następująca po zbiorach"]
[]
["(wybierz z listy)"]
["mikroprzedsiębiorstwem"]
["małym przedsiębiorstwem"]
[]
["TAK"]
[]
[]
["X"]
[]
["(wybierz z listy)"]
["1407/2013"]
["1408/2013"]
["717/2014"]
[]
["(wybierz z listy)"]
["dotacja"]
["pożyczka"]
["kredyt"]
["gwarancja"]
["poręczenie"]
["ulga podatkowa"]
["zwolnienie podatkowe"]
["zaniechanie poboru podatku"]
["odroczenie płatności podatku"]
["rozłożenie na raty podatku"]
["umorzenie zal. podatkowej"]
["inne"]
[]
["(wybierz z listy)"]
[15000]
[30000]
[100000]
[200000]
[]
["średni kurs ogłoszony przez NBP na dzień udzielenia pomocy"]
[4.1802999999999999,"2017-05-26"]
[]
["(wybierz z listy)"]
["NIE"]
["obszar typu górskiego"]
["obszar ze specyficznymi utrudnieniami"]
["obszar typu nizinnego strefy I"]
["obszar typu nizinnego strefy II"]
[]
[]
["(wybierz z listy)"]
["Austria"]
["Belgia"]
["Wielka Brytania"]
["Bułgaria"]
["Chorwacja"]
["Cypr"]
["Czechy"]
["Dania"]
["Estonia"]
["Finlandia "]
["Francja"]
["Grecja"]
["Hiszpania"]
["Holandia"]
["Irlandia"]
["Litwa"]
["Luksmeburg"]
["Łotwa"]
["Malta"]
["Niemcy"]
["Polska "]
["Portugalia"]
["Rumunia"]
["Słowacja"]
["Słowenia"]
["Szwecja "]
["Węgry"]
["Włochy"]
[]
["(wybierz z listy)"]
[500000]
[250000]
[]
[]
["(wybierz z listy)"]
["nie uzyskałem/am pomocy publicznej przyznawanej zgodnie z zasadą de minimis"]
["uzyskałem/am poniższą pomoc publiczną przyznawaną zgodnie z zasadą de minimis"]
[]
["(wybierz z listy)"]
["TAK"]
["NIE"]
["NIE DOTYCZY"]
[]
["(wybierz z listy)"]
["OSOBA FIZYCZNA "]
["OSOBA PRAWNA"]
["JEDNOSTKA ORGANIZACYJNA NIEPOSIADAJĄCA OSOBOWOŚCI PRAWNEJ "]
[]
[]
[]
["(wybierz z listy)"]
["kody PKD"]
[]
[]
[]
["(wybierz z listy)"]
["uprawy polowe"]
["uprawy ogrodnicze"]
["winnice"]
["uprawy trwałe"]
["krowy mleczne"]
["zwierzęta trawożerne"]
["zwierzęta ziarnożerne-trzoda chlewna"]
["drób oraz pozostałe ziarnożerne"]
["mieszane"]
["inne"]
[]
[]
["(wybierz z listy)"]
[1]
["więcej niż 1 ale mniej niż 2"]
["co najmniej 2 ale mniej niż 3"]
["co najmniej 3"]
[]
["(wybierz z listy)"]
["jestem w związku małżeńskim "]
["nie jestem w związku małżeńskim "]
[]
["(wybierz z listy obszar wsparcia) "]
["OPERACJA ZWIĄZANA Z ROZPOCZYNANIEM POZAROLNICZEJ DZIAŁALNOŚCI GOSPODARCZEJ ORAZ ZAPRZESTANIEM CHOWU I HODOWLI ŚWIŃ NA OBSZARACH WIEJSKICH OBJĘTYCH ASF"]
["OPERACJA ZWIĄZANĄ Z ROZPOCZYNANIEM POZAROLNICZEJ DZIAŁALNOŚCI GOSPODARCZEJ "]

{"sheet":"zał premie","index":15,"n_rows":16,"n_cols":3,"rows_kept":16,"cut":false,"hidden":true,"merged":[[0,0,0,2],[15,0,15,1]]}
["VII. 6. Część szczegółowa dla działania Pomoc na rozpoczęcie pozarolniczej działalności gospodarczej na obszarach wiejskich"]
["LP","Nazwa załącznika","Liczba"]
[]
[]
[]
[]
[]
[]
[]
[]
[]
[]
[]
[]
[]
["Liczba załączników (ogółem)",null,{"$f":"SUM(C3:C15)","v":0}]

{"sheet":"Arkusz1","index":16,"n_rows":0,"n_cols":0,"rows_kept":0,"cut":false,"hidden":true,"merged":[]}

{"sheet":"Arkusz2","index":17,"n_rows":0,"n_cols":0,"rows_kept":0,"cut":false,"hidden":true,"merged":[]}